Workbook

Sheet Hoja1
L1: Código: M-AC-F012
L2: Versión: 01 | X2: TIPO DE ENTIDAD O USUARIO | AC2: DÍAS NO LABORABLES
L3: Fecha: 15/01/2017 | X3: CIUDADANO | AC3: 2019-01-05
L4: Página: 1 de 1 | X4: ACADEMIA | AC4: 2019-01-06
X5: EMPRESA PRIVADA | AC5: 2019-01-07
B6: Dependencia: | X6: ENTIDAD PÚBLICA | AC6: 2019-01-12
X7: EXTRANJERO | AC7: 2019-01-13
B8: Período de Reporte | X8: FUNCIONARIO IDEAM | AC8: 2019-01-19
X9: ONG/ORG | AC9: 2019-01-20
A10: DATOS DEL REQUERIMIENTO | D10: POSTURA DE REQUERIMIENTO | J10: ANÁLISIS DE RESPUESTAS | AC10: 2019-01-26
A11: No. | B11: No. DE REQUERIMIENTO | C11: FECHA DE REQUERIMIENTO (dd/mm/aaaa) | D11: MEDIO RECEPCIÓN | E11: TIPO DE REQUERIMIENTO | F11: PRODUCTO O SERVICIO AL CUAL SE REFIERE EL REQUERIMIENTO | G11: DEPENDENCIA QUE DA RESPUESTA O A LA QUE SE DIRECCIONA | H11: FECHA DE RESOLUCIÓN DEL REQUERIMIENTO (dd/mm/aaaa) | I11: CANAL POR EL CUAL FUE RESUELTO EL REQUERIMIENTO | J11: FECHA OPORTUNA DE RESPUESTA | K11: ESTADO (A TIEMPO, FUERA DE TIEMPO, SIN RESPUESTA) | L11: TIEMPO QUE TARDÓ EN DAR RESPUESTA | M11: DÍAS VENCIDOS CON RESPECTO A FECHA OPORTUNA DE RESPUESTA | X11: GÉNERO | AC11: 2019-01-27
A12: =IF(B12<>"",1,"") -> 1 | B12: 20199050048152 | C12: 2019-07-01 | D12: CORREO ELECTRÓNICO | E12: SOLICITUD DE INFORMACIÓN Y DOCUMENTOS | F12: SOLICITUD DE INFORMACIÓN HIDROMETEOROLÓGICA | G12: GRUPO DE SERVICIO AL CIUDADANO | H12: 2019-07-05 | I12: CORREO ELECTRÓNICO | J12: =IFERROR(WORKDAY(C12,P12,DiasNOLaborables),"") -> 2019-07-15 | K12: =+IF(C12="","",IF(H12="","SIN RESPUESTA",(IF(H12<=J12,"A TIEMPO","FUERA DE TIEMPO")))) -> A TIEMPO | L12: =IF(H12="","",NETWORKDAYS(C12+1,H12,DiasNOLaborables)) -> 4 | M12: =IF(NETWORKDAYS(J12+1,H12,DiasNOLaborables)<=0,"",NETWORKDAYS(J12+1,H12,DiasNOLaborables)) ->  | P12: =IFERROR(VLOOKUP(E12,$X$50:$Y$63,2),"") -> 10 | X12: FEMENINO | AC12: 2019-02-02
A13: =IF(B13<>"",A12+1,"") -> 2 | B13: 20199050048162 | C13: 2019-07-01 | D13: CORREO ELECTRÓNICO | E13: SOLICITUD DE INFORMACIÓN Y DOCUMENTOS | F13: SOLICITUD DE INFORMACIÓN HIDROMETEOROLÓGICA | G13: GRUPO DE SERVICIO AL CIUDADANO | H13: 2019-07-05 | I13: CORREO ELECTRÓNICO | J13: 2019-07-15 | K13: A TIEMPO | L13: 4 | P13: 10 | X13: MASCULINO | AC13: 2019-02-03
A14: =IF(B14<>"",A13+1,"") -> 3 | B14: 20199050048192 | C14: 2019-07-01 | D14: CORREO ELECTRÓNICO | E14: SOLICITUD DE INFORMACIÓN Y DOCUMENTOS | F14: SOLICITUD DE INFORMACIÓN HIDROMETEOROLÓGICA | G14: GRUPO DE SERVICIO AL CIUDADANO | H14: 2019-07-05 | I14: CORREO ELECTRÓNICO | J14: 2019-07-15 | K14: A TIEMPO | L14: 4 | P14: 10 | X14: PERSONA JURÍDICA | AC14: 2019-02-09
A15: 4 | B15: 20199050048202 | C15: 2019-07-02 | D15: CORREO ELECTRÓNICO | E15: SOLICITUD DE INFORMACIÓN Y DOCUMENTOS | F15: SOLICITUD DE INFORMACIÓN HIDROMETEOROLÓGICA | G15: GRUPO DE SERVICIO AL CIUDADANO | H15: 2019-07-05 | I15: CORREO ELECTRÓNICO | J15: 2019-07-16 | K15: A TIEMPO | L15: 3 | P15: 10 | AC15: 2019-02-10
A16: 5 | B16: 20199050048232 | C16: 2019-07-02 | D16: CORREO ELECTRÓNICO | E16: SOLICITUD DE INFORMACIÓN Y DOCUMENTOS | F16: SOLICITUD DE INFORMACIÓN HIDROMETEOROLÓGICA | G16: GRUPO DE SERVICIO AL CIUDADANO | H16: 2019-07-05 | I16: CORREO ELECTRÓNICO | J16: 2019-07-16 | K16: A TIEMPO | L16: 3 | P16: 10 | X16: DEPENDENCIA QUE DA RESPUESTA O LA QUE SE DIRECCIONA | AC16: 2019-02-16
A17: 6 | B17: 20199050048272 | C17: 2019-07-02 | D17: CORREO ELECTRÓNICO | E17: SOLICITUD DE INFORMACIÓN Y DOCUMENTOS | F17: SOLICITUD DE INFORMACIÓN HIDROMETEOROLÓGICA | G17: GRUPO DE SERVICIO AL CIUDADANO | H17: 2019-07-05 | I17: CORREO ELECTRÓNICO | J17: 2019-07-16 | K17: A TIEMPO | L17: 3 | P17: 10 | X17: AREA OPERATIVA No. 1 | AC17: 2019-02-17
A18: 7 | B18: 20199050048332 | C18: 2019-07-02 | D18: CORREO ELECTRÓNICO | E18: SOLICITUD DE INFORMACIÓN Y DOCUMENTOS | F18: SOLICITUD DE INFORMACIÓN HIDROMETEOROLÓGICA | G18: GRUPO DE SERVICIO AL CIUDADANO | H18: 2019-07-08 | I18: CORREO ELECTRÓNICO | J18: 2019-07-16 | K18: A TIEMPO | L18: 4 | P18: 10 | X18: AREA OPERATIVA No. 2 | AC18: 2019-02-23
A19: 8 | B19: 20199050048372 | C19: 2019-07-02 | D19: CORREO ELECTRÓNICO | E19: SOLICITUD DE INFORMACIÓN Y DOCUMENTOS | F19: ACREDITACIÓN DE LABORATORIOS | G19: SUBDIRECCIÓN DE ESTUDIOS AMBIENTALES | H19: 2019-07-29 | I19: CORREO ELECTRÓNICO | J19: 2019-07-16 | K19: FUERA DE TIEMPO | L19: 19 | M19: 9 | P19: 10 | X19: AREA OPERATIVA No. 3 | AC19: 2019-02-24
A20: 9 | B20: 20199050048392 | C20: 2019-07-02 | D20: CORREO ELECTRÓNICO | E20: SOLICITUD DE INFORMACIÓN Y DOCUMENTOS | F20: REGISTROS AMBIENTALES | G20: SUBDIRECCIÓN DE ESTUDIOS AMBIENTALES | H20: 2019-07-02 | I20: CORREO ELECTRÓNICO | J20: 2019-07-16 | K20: A TIEMPO | L20: -2 | P20: 10 | X20: AREA OPERATIVA No. 4 | AC20: 2019-03-02
A21: 10 | B21: 20199050048402 | C21: 2019-07-02 | D21: CORREO ELECTRÓNICO | E21: SOLICITUD DE INFORMACIÓN Y DOCUMENTOS | F21: REGISTROS AMBIENTALES | G21: SUBDIRECCIÓN DE ESTUDIOS AMBIENTALES | H21: 2019-07-02 | I21: CORREO ELECTRÓNICO | J21: 2019-07-16 | K21: A TIEMPO | L21: -2 | P21: 10 | X21: AREA OPERATIVA No. 5 | AC21: 2019-03-03
A22: 11 | B22: 20199050048422 | C22: 2019-07-02 | D22: CORREO ELECTRÓNICO | E22: PETICIÓN | F22: ADMINISTRATIVA | G22: GRUPO DE SERVICIOS ADMINISTRATIVOS | H22: 2019-07-18 | I22: CORREO CERTIFICADO | J22: 2019-07-23 | K22: A TIEMPO | L22: 12 | P22: 15 | X22: AREA OPERATIVA No. 6 | AC22: 2019-03-09
A23: 12 | B23: 20199050048452 | C23: 2019-07-02 | D23: CORREO ELECTRÓNICO | E23: SOLICITUD DE INFORMACIÓN Y DOCUMENTOS | F23: REGISTROS AMBIENTALES | G23: SUBDIRECCIÓN DE ESTUDIOS AMBIENTALES | H23: 2019-07-08 | I23: CORREO ELECTRÓNICO | J23: 2019-07-16 | K23: A TIEMPO | L23: 4 | P23: 10 | X23: AREA OPERATIVA No. 7 | AC23: 2019-03-10
A24: 13 | B24: 20199050048462 | C24: 2019-07-02 | D24: CORREO ELECTRÓNICO | E24: SOLICITUD DE INFORMACIÓN Y DOCUMENTOS | F24: CLIMATOLOGÍA | G24: SUBDIRECCIÓN DE METEOROLOGÍA | H24: 2019-07-16 | I24: CORREO ELECTRÓNICO | J24: 2019-07-16 | K24: A TIEMPO | L24: 10 | P24: 10 | X24: AREA OPERATIVA No. 8 | AC24: 2019-03-16
A25: 14 | B25: 20199050048502 | C25: 2019-07-02 | D25: CORREO ELECTRÓNICO | E25: REMISIÓN POR COMPETENCIA | F25: ADMINISTRATIVA | G25: GRUPO DE SERVICIO AL CIUDADANO | H25: 2019-07-05 | I25: CORREO ELECTRÓNICO | J25: 2019-07-09 | K25: A TIEMPO | L25: 3 | P25: 5 | X25: AREA OPERATIVA No. 9 | AC25: 2019-03-17
A26: 15 | B26: 20199050048532 | C26: 2019-07-02 | D26: CORREO ELECTRÓNICO | E26: SOLICITUD DE INFORMACIÓN Y DOCUMENTOS | F26: REGISTROS AMBIENTALES | G26: SUBDIRECCIÓN DE ESTUDIOS AMBIENTALES | H26: 2019-07-16 | I26: CORREO ELECTRÓNICO | J26: 2019-07-16 | K26: A TIEMPO | L26: 10 | P26: 10 | X26: AREA OPERATIVA No. 10 | AC26: 2019-03-23
A27: 16 | B27: 20199050048572 | C27: 2019-07-02 | D27: CORREO ELECTRÓNICO | E27: CERTIFICACIONES DE TIEMPO, CLIMA Y EVENTOS HIDROLÓGICOS | F27: CERTIFICACIONES DE TIEMPO Y CLIMA | G27: SUBDIRECCIÓN DE METEOROLOGÍA | H27: 2019-07-16 | I27: CORREO ELECTRÓNICO | J27: 2019-08-14 | K27: A TIEMPO | L27: 10 | P27: 30 | X27: AREA OPERATIVA No. 11 | AC27: 2019-03-25
A28: 17 | B28: 20199050048582 | C28: 2019-07-02 | D28: CORREO ELECTRÓNICO | E28: PETICIÓN | F28: SOLICITUD DE INFORMACIÓN HIDROMETEOROLÓGICA | G28: SUBDIRECCIÓN DE METEOROLOGÍA | H28: 2019-07-22 | I28: CORREO ELECTRÓNICO | J28: 2019-07-23 | K28: A TIEMPO | L28: 14 | P28: 15 | X28: DIRECCIÓN GENERAL | AC28: 2019-03-30
A29: 18 | B29: 20199050048592 | C29: 2019-07-02 | D29: CORREO ELECTRÓNICO | E29: SOLICITUD DE INFORMACIÓN Y DOCUMENTOS | F29: REGISTROS AMBIENTALES | G29: SUBDIRECCIÓN DE ESTUDIOS AMBIENTALES | H29: 2019-07-02 | I29: CORREO ELECTRÓNICO | J29: 2019-07-16 | K29: A TIEMPO | L29: -2 | P29: 10 | X29: GRUPO DE ADMINISTRACIÓN Y DESARROLLO DEL TALENTO HUMANO | AC29: 2019-03-31
A30: 19 | B30: 20199050048602 | C30: 2019-07-02 | D30: MODULO CONTACTENOS | E30: SOLICITUD DE INFORMACIÓN Y DOCUMENTOS | F30: REGISTROS AMBIENTALES | G30: SUBDIRECCIÓN DE ESTUDIOS AMBIENTALES | H30: 2019-07-02 | I30: CORREO ELECTRÓNICO | J30: 2019-07-16 | K30: A TIEMPO | L30: -2 | P30: 10 | X30: GRUPO DE COMUNICACIONES | AC30: 2019-04-06
A31: 20 | B31: 20199050048612 | C31: 2019-07-02 | D31: CORREO ELECTRÓNICO | E31: SOLICITUD DE INFORMACIÓN Y DOCUMENTOS | F31: ADMINISTRATIVA | G31: GRUPO DE ADMINISTRACIÓN Y DESARROLLO DEL TALENTO HUMANO | H31: 2019-07-09 | I31: CORREO ELECTRÓNICO | J31: 2019-07-16 | K31: A TIEMPO | L31: 5 | P31: 10 | X31: GRUPO DE CONTABILIDAD | AC31: 2019-04-07
A32: 21 | B32: 20199050048632 | C32: 2019-07-02 | D32: CORREO ELECTRÓNICO | E32: SOLICITUD DE INFORMACIÓN Y DOCUMENTOS | F32: ADMINISTRATIVA | G32: GRUPO DE TESORERÍA | H32: 2019-07-03 | I32: CORREO ELECTRÓNICO | J32: 2019-07-16 | K32: A TIEMPO | L32: 1 | P32: 10 | X32: GRUPO DE CONTROL DISCIPLINARIO INTERNO | AC32: 2019-04-13
A33: 22 | B33: 20199050048642 | C33: 2019-07-02 | D33: CORREO ELECTRÓNICO | E33: CERTIFICACIONES DE TIEMPO, CLIMA Y EVENTOS HIDROLÓGICOS | F33: SOLICITUD DE INFORMACIÓN HIDROMETEOROLÓGICA | G33: SUBDIRECCIÓN DE METEOROLOGÍA | H33: 2019-07-12 | I33: CORREO ELECTRÓNICO | J33: 2019-08-14 | K33: A TIEMPO | L33: 8 | P33: 30 | X33: GRUPO DE GESTIÓN DOCUMENTAL Y CENTRO DE DOCUMENTACIÓN | AC33: 2019-04-14
A34: 23 | B34: 20199050048662 | C34: 2019-07-02 | D34: CORREO ELECTRÓNICO | E34: PETICIÓN | F34: ADMINISTRATIVA | G34: GRUPO DE ADMINISTRACIÓN Y DESARROLLO DEL TALENTO HUMANO | H34: 2019-08-08 | I34: CORREO ELECTRÓNICO | J34: 2019-07-23 | K34: FUERA DE TIEMPO | L34: 26 | M34: 11 | P34: 15 | X34: GRUPO DE PRESUPUESTO | AC34: 2019-04-18
A35: 24 | B35: 20199050048682 | C35: 2019-07-02 | D35: CORREO ELECTRÓNICO | E35: SOLICITUD DE INFORMACIÓN Y DOCUMENTOS | F35: REGISTROS AMBIENTALES | G35: SUBDIRECCIÓN DE ESTUDIOS AMBIENTALES | H35: 2019-07-02 | I35: CORREO ELECTRÓNICO | J35: 2019-07-16 | K35: A TIEMPO | L35: -2 | P35: 10 | X35: GRUPO DE SERVICIO AL CIUDADANO | AC35: 2019-04-19
A36: 25 | B36: 20199050048702 | C36: 2019-07-02 | D36: CORREO ELECTRÓNICO | E36: CERTIFICACIONES DE TIEMPO, CLIMA Y EVENTOS HIDROLÓGICOS | F36: CERTIFICACIONES DE TIEMPO Y CLIMA | G36: SUBDIRECCIÓN DE METEOROLOGÍA | H36: 2019-07-05 | I36: CORREO ELECTRÓNICO | J36: 2019-08-14 | K36: A TIEMPO | L36: 3 | P36: 30 | X36: GRUPO DE SERVICIOS ADMINISTRATIVOS | AC36: 2019-04-20
A37: 26 | B37: 20199050048722 | C37: 2019-07-02 | D37: CORREO ELECTRÓNICO | E37: SOLICITUD DE INFORMACIÓN Y DOCUMENTOS | F37: ACREDITACIÓN DE LABORATORIOS | G37: SUBDIRECCIÓN DE ESTUDIOS AMBIENTALES | H37: 2019-07-08 | I37: CORREO ELECTRÓNICO | J37: 2019-07-16 | K37: A TIEMPO | L37: 4 | P37: 10 | X37: GRUPO DE TESORERÍA | AC37: 2019-04-21
A38: 27 | B38: 20199050048732 | C38: 2019-07-02 | D38: CORREO ELECTRÓNICO | E38: CERTIFICACIONES DE TIEMPO, CLIMA Y EVENTOS HIDROLÓGICOS | F38: CERTIFICACIONES DE TIEMPO Y CLIMA | G38: SUBDIRECCIÓN DE METEOROLOGÍA | H38: 2019-07-05 | I38: CORREO ELECTRÓNICO | J38: 2019-08-14 | K38: A TIEMPO | L38: 3 | P38: 30 | X38: OFICINA ASESORA DE PLANEACIÓN | AC38: 2019-04-27
A39: 28 | B39: 20199050048742 | C39: 2019-07-02 | D39: CORREO ELECTRÓNICO | E39: CERTIFICACIONES DE TIEMPO, CLIMA Y EVENTOS HIDROLÓGICOS | F39: CERTIFICACIONES DE TIEMPO Y CLIMA | G39: SUBDIRECCIÓN DE METEOROLOGÍA | H39: 2019-07-07 | I39: CORREO ELECTRÓNICO | J39: 2019-08-14 | K39: A TIEMPO | L39: 3 | P39: 30 | X39: OFICINA ASESORA JURÍDICA | AC39: 2019-04-28
A40: 29 | B40: 20199050048752 | C40: 2019-07-02 | D40: CORREO ELECTRÓNICO | E40: SOLICITUD DE INFORMACIÓN Y DOCUMENTOS | F40: SIA | G40: SUBDIRECCIÓN DE ECOSISTEMAS E INFORMACIÓN AMBIENTAL | H40: 2019-08-08 | I40: CORREO ELECTRÓNICO | J40: 2019-07-16 | K40: FUERA DE TIEMPO | L40: 26 | M40: 16 | P40: 10 | X40: OFICINA DE CONTROL INTERNO | AC40: 2019-05-01
A41: 30 | B41: 20199050048762 | C41: 2019-07-02 | D41: CORREO ELECTRÓNICO | E41: CERTIFICACIONES DE TIEMPO, CLIMA Y EVENTOS HIDROLÓGICOS | F41: CERTIFICACIONES DE TIEMPO Y CLIMA | G41: SUBDIRECCIÓN DE METEOROLOGÍA | H41: 2019-07-18 | I41: CORREO ELECTRÓNICO | J41: 2019-08-14 | K41: A TIEMPO | L41: 12 | P41: 30 | X41: OFICINA DE INFORMÁTICA | AC41: 2019-05-04
A42: 31 | B42: 20199050048832 | C42: 2019-07-02 | D42: CORREO ELECTRÓNICO | E42: CERTIFICACIONES DE TIEMPO, CLIMA Y EVENTOS HIDROLÓGICOS | F42: CERTIFICACIONES DE TIEMPO Y CLIMA | G42: SUBDIRECCIÓN DE METEOROLOGÍA | H42: 2019-07-17 | I42: CORREO ELECTRÓNICO | J42: 2019-08-14 | K42: A TIEMPO | L42: 11 | P42: 30 | X42: OFICINA DEL SERVICIO DE PRONÓSTICOS Y ALERTAS | AC42: 2019-05-05
A43: 32 | B43: 20199050048852 | C43: 2019-07-02 | D43: CORREO ELECTRÓNICO | E43: PETICIÓN | F43: ACREDITACIÓN DE LABORATORIOS | G43: SUBDIRECCIÓN DE ESTUDIOS AMBIENTALES | H43: 2019-07-17 | I43: CORREO ELECTRÓNICO | J43: 2019-07-23 | K43: A TIEMPO | L43: 11 | P43: 15 | X43: SECRETARÍA GENERAL | AC43: 2019-05-11
A44: 33 | B44: 20199050048872 | C44: 2019-07-02 | D44: CORREO ELECTRÓNICO | E44: CERTIFICACIONES DE TIEMPO, CLIMA Y EVENTOS HIDROLÓGICOS | F44: CERTIFICACIONES DE TIEMPO Y CLIMA | G44: SUBDIRECCIÓN DE METEOROLOGÍA | H44: 2019-07-17 | I44: CORREO ELECTRÓNICO | J44: 2019-08-14 | K44: A TIEMPO | L44: 11 | P44: 30 | X44: SUBDIRECCIÓN DE ECOSISTEMAS E INFORMACIÓN AMBIENTAL | AC44: 2019-05-12
A45: 34 | B45: 20199050048892 | C45: 2019-07-02 | D45: CORREO ELECTRÓNICO | E45: SOLICITUD DE INFORMACIÓN Y DOCUMENTOS | F45: REGISTROS AMBIENTALES | G45: SUBDIRECCIÓN DE ESTUDIOS AMBIENTALES | H45: 2019-07-08 | I45: CORREO ELECTRÓNICO | J45: 2019-07-16 | K45: A TIEMPO | L45: 4 | P45: 10 | X45: SUBDIRECCIÓN DE ESTUDIOS AMBIENTALES | AC45: 2019-05-18
A46: 35 | B46: 20199050048182 | C46: 2019-07-02 | D46: MODULO CONTACTENOS | E46: SOLICITUD DE INFORMACIÓN Y DOCUMENTOS | F46: ADMINISTRATIVA | G46: GRUPO DE ADMINISTRACIÓN Y DESARROLLO DEL TALENTO HUMANO | H46: 2019-07-09 | I46: CORREO ELECTRÓNICO | J46: 2019-07-16 | K46: A TIEMPO | L46: 5 | P46: 10 | X46: SUBDIRECCIÓN DE HIDROLOGÍA | AC46: 2019-05-19
A47: 36 | B47: 20199050048212 | C47: 2019-07-02 | D47: MODULO CONTACTENOS | E47: SOLICITUD DE INFORMACIÓN Y DOCUMENTOS | F47: BOSQUES | G47: SUBDIRECCIÓN DE ECOSISTEMAS E INFORMACIÓN AMBIENTAL | H47: 2019-07-08 | I47: CORREO ELECTRÓNICO | J47: 2019-07-16 | K47: A TIEMPO | L47: 4 | P47: 10 | X47: SUBDIRECCIÓN DE METEOROLOGÍA | AC47: 2019-05-25
A48: 37 | B48: 20199050048222 | C48: 2019-07-02 | D48: MODULO CONTACTENOS | E48: SOLICITUD DE INFORMACIÓN Y DOCUMENTOS | F48: CLIMATOLOGÍA | G48: SUBDIRECCIÓN DE METEOROLOGÍA | H48: 2019-07-15 | I48: CORREO ELECTRÓNICO | J48: 2019-07-16 | K48: A TIEMPO | L48: 9 | P48: 10 | AC48: 2019-05-26
A49: 38 | B49: 20199050048262 | C49: 2019-07-02 | D49: MODULO CONTACTENOS | E49: CERTIFICACIONES DE TIEMPO, CLIMA Y EVENTOS HIDROLÓGICOS | F49: CERTIFICACIONES DE TIEMPO Y CLIMA | G49: SUBDIRECCIÓN DE METEOROLOGÍA | H49: 2019-07-17 | I49: CORREO ELECTRÓNICO | J49: 2019-08-14 | K49: A TIEMPO | L49: 11 | P49: 30 | X49: TIPO DE REQUERIMIENTO | Y49: Término | AC49: 2019-06-01
A50: 39 | B50: 20199050048282 | C50: 2019-07-02 | D50: MODULO CONTACTENOS | E50: CERTIFICACIONES DE TIEMPO, CLIMA Y EVENTOS HIDROLÓGICOS | F50: CERTIFICACIONES DE TIEMPO Y CLIMA | G50: SUBDIRECCIÓN DE METEOROLOGÍA | H50: 2019-07-25 | I50: CORREO ELECTRÓNICO | J50: 2019-08-14 | K50: A TIEMPO | L50: 17 | P50: 30 | X50: AGRADECIMIENTO/FELICITACION | Y50: 15 | AC50: 2019-06-02
A51: 40 | B51: 20199050048442 | C51: 2019-07-02 | D51: MODULO CONTACTENOS | E51: SOLICITUD DE INFORMACIÓN Y DOCUMENTOS | F51: ADMINISTRATIVA | G51: GRUPO DE ADMINISTRACIÓN Y DESARROLLO DEL TALENTO HUMANO | H51: 2019-07-09 | I51: CORREO ELECTRÓNICO | J51: 2019-07-16 | K51: A TIEMPO | L51: 5 | P51: 10 | X51: CERTIFICACIONES DE TIEMPO, CLIMA Y EVENTOS HIDROLÓGICOS | Y51: 30 | AC51: 2019-06-03
A52: 41 | B52: 20199050048562 | C52: 2019-07-02 | D52: MODULO CONTACTENOS | E52: SOLICITUD DE INFORMACIÓN Y DOCUMENTOS | F52: CAMBIO CLIMÁTICO | G52: SUBDIRECCIÓN DE ESTUDIOS AMBIENTALES | H52: 2019-07-03 | I52: CORREO ELECTRÓNICO | J52: 2019-07-16 | K52: A TIEMPO | L52: 1 | P52: 10 | X52: CONSULTA | Y52: 30 | AC52: 2019-06-08
A53: 42 | B53: 20199050049222 | C53: 2019-07-02 | D53: MODULO CONTACTENOS | E53: CERTIFICACIONES DE TIEMPO, CLIMA Y EVENTOS HIDROLÓGICOS | F53: CERTIFICACIONES DE TIEMPO Y CLIMA | G53: SUBDIRECCIÓN DE METEOROLOGÍA | H53: 2019-07-23 | I53: CORREO CERTIFICADO | J53: 2019-08-14 | K53: A TIEMPO | L53: 15 | P53: 30 | X53: DENUNCIA | Y53: 15 | AC53: 2019-06-09
A54: 43 | B54: 20199050048322 | C54: 2019-07-02 | D54: MODULO CONTACTENOS | E54: SOLICITUD DE INFORMACIÓN Y DOCUMENTOS | F54: SOLICITUD DE INFORMACIÓN HIDROMETEOROLÓGICA | G54: GRUPO DE SERVICIO AL CIUDADANO | H54: 2019-07-08 | I54: CORREO ELECTRÓNICO | J54: 2019-07-16 | K54: A TIEMPO | L54: 4 | P54: 10 | X54: PETICIÓN | Y54: 15 | AC54: 2019-06-15
A55: 44 | B55: 20199050048342 | C55: 2019-07-02 | D55: MODULO CONTACTENOS | E55: SOLICITUD DE INFORMACIÓN Y DOCUMENTOS | F55: SOLICITUD DE INFORMACIÓN HIDROMETEOROLÓGICA | G55: GRUPO DE SERVICIO AL CIUDADANO | H55: 2019-07-08 | I55: CORREO ELECTRÓNICO | J55: 2019-07-16 | K55: A TIEMPO | L55: 4 | P55: 10 | X55: PETICIÓN ENTRE AUTORIDADES | Y55: 10 | AC55: 2019-06-16
A56: 45 | B56: 20199050048352 | C56: 2019-07-02 | D56: MODULO CONTACTENOS | E56: SOLICITUD DE INFORMACIÓN Y DOCUMENTOS | F56: SOLICITUD DE INFORMACIÓN HIDROMETEOROLÓGICA | G56: GRUPO DE SERVICIO AL CIUDADANO | H56: 2019-07-08 | I56: CORREO ELECTRÓNICO | J56: 2019-07-16 | K56: A TIEMPO | L56: 4 | P56: 10 | X56: PETICION VERBAL | Y56: 15 | AC56: 2019-06-22
A57: 46 | B57: 20199050048672 | C57: 2019-07-02 | D57: MODULO CONTACTENOS | E57: SOLICITUD DE INFORMACIÓN Y DOCUMENTOS | F57: SOLICITUD DE INFORMACIÓN HIDROMETEOROLÓGICA | G57: GRUPO DE SERVICIO AL CIUDADANO | H57: 2019-07-08 | I57: CORREO ELECTRÓNICO | J57: 2019-07-16 | K57: A TIEMPO | L57: 4 | P57: 10 | X57: QUEJA | Y57: 15 | AC57: 2019-06-23
A58: 47 | B58: 20199050048782 | C58: 2019-07-02 | D58: MODULO CONTACTENOS | E58: SOLICITUD DE INFORMACIÓN Y DOCUMENTOS | F58: SOLICITUD DE INFORMACIÓN HIDROMETEOROLÓGICA | G58: GRUPO DE SERVICIO AL CIUDADANO | H58: 2019-07-08 | I58: CORREO ELECTRÓNICO | J58: 2019-07-16 | K58: A TIEMPO | L58: 4 | P58: 10 | X58: RECLAMO | Y58: 15 | AC58: 2019-06-24
A59: 48 | B59: 20199050048822 | C59: 2019-07-02 | D59: MODULO CONTACTENOS | E59: SOLICITUD DE INFORMACIÓN Y DOCUMENTOS | F59: SOLICITUD DE INFORMACIÓN HIDROMETEOROLÓGICA | G59: GRUPO DE SERVICIO AL CIUDADANO | H59: 2019-07-08 | I59: CORREO ELECTRÓNICO | J59: 2019-07-16 | K59: A TIEMPO | L59: 4 | P59: 10 | X59: REMISIÓN POR COMPETENCIA | Y59: 5 | AC59: 2019-06-29
A60: 49 | B60: 20199050048942 | C60: 2019-07-02 | D60: MODULO CONTACTENOS | E60: SOLICITUD DE INFORMACIÓN Y DOCUMENTOS | F60: SOLICITUD DE INFORMACIÓN HIDROMETEOROLÓGICA | G60: GRUPO DE SERVICIO AL CIUDADANO | H60: 2019-07-08 | I60: CORREO ELECTRÓNICO | J60: 2019-07-16 | K60: A TIEMPO | L60: 4 | P60: 10 | X60: SOLICITUD CONGRESITAS | Y60: 5 | AC60: 2019-06-30
A61: 50 | B61: 20199050048812 | C61: 2019-07-02 | D61: MODULO CONTACTENOS | E61: SOLICITUD DE INFORMACIÓN Y DOCUMENTOS | F61: SOLICITUD DE INFORMACIÓN HIDROMETEOROLÓGICA | G61: GRUPO DE SERVICIO AL CIUDADANO | H61: 2019-07-09 | I61: CORREO ELECTRÓNICO | J61: 2019-07-16 | K61: A TIEMPO | L61: 5 | P61: 10 | X61: SOLICITUD DE INFORMACIÓN Y DOCUMENTOS | Y61: 10 | AC61: 2019-07-01
A62: 51 | B62: 20199050048792 | C62: 2019-07-02 | D62: CORREO ELECTRÓNICO | E62: SOLICITUD DE INFORMACIÓN Y DOCUMENTOS | F62: SOLICITUD DE INFORMACIÓN HIDROMETEOROLÓGICA | G62: GRUPO DE SERVICIO AL CIUDADANO | H62: 2019-07-09 | I62: CORREO ELECTRÓNICO | J62: 2019-07-16 | K62: A TIEMPO | L62: 5 | P62: 10 | X62: SOLICITUD JUDICIAL | Y62: 5 | AC62: 2019-07-06
A63: 52 | B63: 20199050049022 | C63: 2019-07-02 | D63: MODULO CONTACTENOS | E63: SOLICITUD DE INFORMACIÓN Y DOCUMENTOS | F63: SOLICITUD DE INFORMACIÓN HIDROMETEOROLÓGICA | G63: GRUPO DE SERVICIO AL CIUDADANO | H63: 2019-07-09 | I63: CORREO ELECTRÓNICO | J63: 2019-07-16 | K63: A TIEMPO | L63: 5 | P63: 10 | X63: SUGERENCIA | Y63: 15 | AC63: 2019-07-07
A64: 53 | B64: 20199050048862 | C64: 2019-07-02 | D64: MODULO CONTACTENOS | E64: CERTIFICACIONES DE TIEMPO, CLIMA Y EVENTOS HIDROLÓGICOS | F64: CERTIFICACIONES DE TIEMPO Y CLIMA | G64: SUBDIRECCIÓN DE METEOROLOGÍA | H64: 2019-07-05 | I64: CORREO ELECTRÓNICO | J64: 2019-08-14 | K64: A TIEMPO | L64: 3 | P64: 30 | AC64: 2019-07-13
A65: 54 | B65: 20199050048902 | C65: 2019-07-02 | D65: MODULO CONTACTENOS | E65: CERTIFICACIONES DE TIEMPO, CLIMA Y EVENTOS HIDROLÓGICOS | F65: CERTIFICACIONES DE TIEMPO Y CLIMA | G65: SUBDIRECCIÓN DE METEOROLOGÍA | H65: 2019-07-05 | I65: CORREO ELECTRÓNICO | J65: 2019-08-14 | K65: A TIEMPO | L65: 3 | P65: 30 | X65: PRODUCTO O SERVICIO | AC65: 2019-07-14
A66: 55 | B66: 20199050048912 | C66: 2019-07-02 | D66: MODULO CONTACTENOS | E66: CERTIFICACIONES DE TIEMPO, CLIMA Y EVENTOS HIDROLÓGICOS | F66: CERTIFICACIONES DE TIEMPO Y CLIMA | G66: SUBDIRECCIÓN DE METEOROLOGÍA | H66: 2019-07-05 | I66: CORREO ELECTRÓNICO | J66: 2019-08-14 | K66: A TIEMPO | L66: 3 | P66: 30 | X66: ACREDITACIÓN DE LABORATORIOS | AC66: 2019-07-20
A67: 56 | B67: 20199050048922 | C67: 2019-07-02 | D67: MODULO CONTACTENOS | E67: CERTIFICACIONES DE TIEMPO, CLIMA Y EVENTOS HIDROLÓGICOS | F67: CERTIFICACIONES DE TIEMPO Y CLIMA | G67: SUBDIRECCIÓN DE METEOROLOGÍA | H67: 2019-07-05 | I67: CORREO ELECTRÓNICO | J67: 2019-08-14 | K67: A TIEMPO | L67: 3 | P67: 30 | X67: ADMINISTRATIVA | AC67: 2019-07-21
A68: 57 | B68: 20199050048932 | C68: 2019-07-02 | D68: MODULO CONTACTENOS | E68: CERTIFICACIONES DE TIEMPO, CLIMA Y EVENTOS HIDROLÓGICOS | F68: CERTIFICACIONES DE TIEMPO Y CLIMA | G68: SUBDIRECCIÓN DE METEOROLOGÍA | H68: 2019-07-05 | I68: CORREO ELECTRÓNICO | J68: 2019-08-14 | K68: A TIEMPO | L68: 3 | P68: 30 | X68: AGUAS SUBTERRANEAS | AC68: 2019-07-27
A69: 58 | B69: 20199910069872 | C69: 2019-07-02 | D69: CORREO CERTIFICADO | E69: CERTIFICACIONES DE TIEMPO, CLIMA Y EVENTOS HIDROLÓGICOS | F69: CERTIFICACIONES DE TIEMPO Y CLIMA | G69: SUBDIRECCIÓN DE METEOROLOGÍA | H69: 2019-07-15 | I69: CORREO ELECTRÓNICO | J69: 2019-08-14 | K69: A TIEMPO | L69: 9 | P69: 30 | X69: ASESORÍAS Y CHARLAS | AC69: 2019-07-28
A70: 59 | B70: 20199910069882 | C70: 2019-07-02 | D70: CORREO CERTIFICADO | E70: CERTIFICACIONES DE TIEMPO, CLIMA Y EVENTOS HIDROLÓGICOS | F70: CERTIFICACIONES DE TIEMPO Y CLIMA | G70: SUBDIRECCIÓN DE METEOROLOGÍA | H70: 2019-07-17 | I70: CORREO ELECTRÓNICO | J70: 2019-08-14 | K70: A TIEMPO | L70: 11 | P70: 30 | X70: BOSQUES | AC70: 2019-08-03
A71: 60 | B71: 20199910069902 | C71: 2019-07-02 | D71: CORREO CERTIFICADO | E71: CERTIFICACIONES DE TIEMPO, CLIMA Y EVENTOS HIDROLÓGICOS | F71: CERTIFICACIONES DE TIEMPO Y CLIMA | G71: SUBDIRECCIÓN DE METEOROLOGÍA | H71: 2019-07-10 | I71: CORREO ELECTRÓNICO | J71: 2019-08-14 | K71: A TIEMPO | L71: 6 | P71: 30 | X71: CAMBIO CLIMÁTICO | AC71: 2019-08-04
A72: 61 | B72: 20199910069912 | C72: 2019-07-02 | D72: CORREO CERTIFICADO | E72: CERTIFICACIONES DE TIEMPO, CLIMA Y EVENTOS HIDROLÓGICOS | F72: CERTIFICACIONES DE TIEMPO Y CLIMA | G72: SUBDIRECCIÓN DE METEOROLOGÍA | H72: 2019-07-08 | I72: CORREO ELECTRÓNICO | J72: 2019-08-14 | K72: A TIEMPO | L72: 4 | P72: 30 | X72: CERTIFICACIONES DE TIEMPO Y CLIMA | AC72: 2019-08-07
A73: 62 | B73: 20199910069982 | C73: 2019-07-02 | D73: CORREO CERTIFICADO | E73: PETICIÓN | F73: CERTIFICACIONES DE TIEMPO Y CLIMA | G73: SUBDIRECCIÓN DE METEOROLOGÍA | H73: 2019-07-17 | I73: CORREO ELECTRÓNICO | J73: 2019-07-23 | K73: A TIEMPO | L73: 11 | P73: 15 | X73: CERTIFICACIONES HIDROLOGICAS | AC73: 2019-08-10
A74: 63 | B74: 20199910070042 | C74: 2019-07-02 | D74: CORREO CERTIFICADO | E74: PETICIÓN | F74: CERTIFICACIONES DE TIEMPO Y CLIMA | G74: SUBDIRECCIÓN DE METEOROLOGÍA | H74: 2019-07-08 | I74: CORREO ELECTRÓNICO | J74: 2019-07-23 | K74: A TIEMPO | L74: 4 | P74: 15 | X74: CLIMATOLOGÍA | AC74: 2019-08-11
A75: 64 | B75: 20199910070082 | C75: 2019-07-02 | D75: CORREO CERTIFICADO | E75: SOLICITUD DE INFORMACIÓN Y DOCUMENTOS | F75: SIRH | G75: SUBDIRECCIÓN DE HIDROLOGÍA | H75: 2019-07-05 | I75: CORREO CERTIFICADO | J75: 2019-07-16 | K75: A TIEMPO | L75: 3 | P75: 10 | X75: ERA | Y75: EVALUACIÓN REGIONAL DEL AGUA | AC75: 2019-08-17
A76: 65 | B76: 20199910071682 | C76: 2019-07-03 | D76: CORREO CERTIFICADO | E76: SOLICITUD DE INFORMACIÓN Y DOCUMENTOS | F76: CLIMATOLOGÍA | G76: SUBDIRECCIÓN DE METEOROLOGÍA | H76: 2019-07-10 | I76: CORREO ELECTRÓNICO | J76: =IFERROR(WORKDAY(C76,P76,DiasNOLaborables),"") -> 2019-07-17 | K76: =+IF(C76="","",IF(H76="","SIN RESPUESTA",(IF(H76<=J76,"A TIEMPO","FUERA DE TIEMPO")))) -> A TIEMPO | L76: =IF(H76="","",NETWORKDAYS(C76+1,H76,DiasNOLaborables)) -> 5 | M76: =IF(NETWORKDAYS(J76+1,H76,DiasNOLaborables)<=0,"",NETWORKDAYS(J76+1,H76,DiasNOLaborables)) ->  | P76: =IFERROR(VLOOKUP(E76,$X$50:$Y$63,2),"") -> 10 | X76: ESTUDIO NACIONAL DEL AGUA | AC76: 2019-08-18
A77: 66 | B77: 20199910072162 | C77: 2019-07-03 | D77: CORREO CERTIFICADO | E77: PETICIÓN | F77: JURIDICO | G77: OFICINA ASESORA JURÍDICA | H77: 2019-07-18 | I77: CORREO CERTIFICADO | J77: 2019-07-24 | K77: A TIEMPO | L77: 11 | P77: 15 | X77: INFORMES AMBIENTALES | AC77: 2019-08-19
A78: =IF(B78<>"",A77+1,"") -> 67 | B78: 20199050048952 | C78: 2019-07-03 | D78: MODULO CONTACTENOS | E78: CERTIFICACIONES DE TIEMPO, CLIMA Y EVENTOS HIDROLÓGICOS | F78: CERTIFICACIONES DE TIEMPO Y CLIMA | G78: SUBDIRECCIÓN DE METEOROLOGÍA | H78: 2019-07-11 | I78: CORREO ELECTRÓNICO | J78: 2019-08-15 | K78: A TIEMPO | L78: 6 | P78: 30 | X78: JURIDICO | AC78: 2019-08-24
A79: 68 | B79: 20199050048962 | C79: 2019-07-03 | D79: MODULO CONTACTENOS | E79: SOLICITUD DE INFORMACIÓN Y DOCUMENTOS | F79: SOLICITUD DE INFORMACIÓN HIDROMETEOROLÓGICA | G79: OFICINA DE INFORMÁTICA | H79: 2019-07-08 | I79: CORREO ELECTRÓNICO | J79: 2019-07-17 | K79: A TIEMPO | L79: 3 | P79: 10 | X79: LABORATORIO DE CALIDAD AMBIENTAL | AC79: 2019-08-25
A80: 69 | B80: 20199050048972 | C80: 2019-07-03 | D80: MODULO CONTACTENOS | E80: CERTIFICACIONES DE TIEMPO, CLIMA Y EVENTOS HIDROLÓGICOS | F80: CERTIFICACIONES DE TIEMPO Y CLIMA | G80: SUBDIRECCIÓN DE METEOROLOGÍA | H80: 2019-07-11 | I80: CORREO ELECTRÓNICO | J80: 2019-08-15 | K80: A TIEMPO | L80: 6 | P80: 30 | X80: MEDIOS DE COMUNICACIÓN | AC80: 2019-08-31
A81: 70 | B81: 20199050048992 | C81: 2019-07-03 | D81: MODULO CONTACTENOS | E81: CERTIFICACIONES DE TIEMPO, CLIMA Y EVENTOS HIDROLÓGICOS | F81: CERTIFICACIONES DE TIEMPO Y CLIMA | G81: SUBDIRECCIÓN DE METEOROLOGÍA | H81: 2019-07-17 | I81: CORREO ELECTRÓNICO | J81: 2019-08-15 | K81: A TIEMPO | L81: 10 | P81: 30 | X81: METEOROLOGÍA AERONAÚTICA | AC81: 2019-09-01
A82: 71 | B82: 20199050048982 | C82: 2019-07-03 | D82: MODULO CONTACTENOS | E82: SOLICITUD DE INFORMACIÓN Y DOCUMENTOS | F82: SOLICITUD DE INFORMACIÓN HIDROMETEOROLÓGICA | G82: GRUPO DE SERVICIO AL CIUDADANO | H82: 2019-07-08 | I82: CORREO ELECTRÓNICO | J82: 2019-07-17 | K82: A TIEMPO | L82: 3 | P82: 10 | X82: MODELACIÓN HIDROLÓGICA | AC82: 2019-09-07
A83: 72 | B83: 20197080001482 | C83: 2019-07-03 | D83: MODULO CONTACTENOS | E83: SOLICITUD DE INFORMACIÓN Y DOCUMENTOS | F83: SOLICITUD DE INFORMACIÓN HIDROMETEOROLÓGICA | G83: GRUPO DE SERVICIO AL CIUDADANO | H83: 2019-07-08 | I83: CORREO ELECTRÓNICO | J83: 2019-07-17 | K83: A TIEMPO | L83: 3 | P83: 10 | X83: MODELAMIENTO METEOROLÓGICO | AC83: 2019-09-08
A84: 73 | B84: 20199050049042 | C84: 2019-07-03 | D84: MODULO CONTACTENOS | E84: SOLICITUD DE INFORMACIÓN Y DOCUMENTOS | F84: SOLICITUD DE INFORMACIÓN HIDROMETEOROLÓGICA | G84: GRUPO DE SERVICIO AL CIUDADANO | H84: 2019-07-09 | I84: CORREO ELECTRÓNICO | J84: 2019-07-17 | K84: A TIEMPO | L84: 4 | P84: 10 | X84: OPERACIÓN DE REDES | AC84: 2019-09-14
A85: 74 | B85: 20199050049032 | C85: 2019-07-03 | D85: MODULO CONTACTENOS | E85: SOLICITUD DE INFORMACIÓN Y DOCUMENTOS | F85: SOLICITUD DE INFORMACIÓN HIDROMETEOROLÓGICA | G85: GRUPO DE SERVICIO AL CIUDADANO | H85: 2019-07-09 | I85: CORREO ELECTRÓNICO | J85: 2019-07-17 | K85: A TIEMPO | L85: 4 | P85: 10 | X85: PRONÓSTICOS Y ALERTAS | AC85: 2019-09-15
A86: 75 | B86: 20199050049062 | C86: 2019-07-03 | D86: MODULO CONTACTENOS | E86: SOLICITUD DE INFORMACIÓN Y DOCUMENTOS | F86: SOLICITUD DE INFORMACIÓN HIDROMETEOROLÓGICA | G86: GRUPO DE SERVICIO AL CIUDADANO | H86: 2019-07-09 | I86: CORREO ELECTRÓNICO | J86: 2019-07-17 | K86: A TIEMPO | L86: 4 | P86: 10 | X86: REGISTROS AMBIENTALES | AC86: 2019-09-21
A87: 76 | B87: 20199050049082 | C87: 2019-07-03 | D87: MODULO CONTACTENOS | E87: SOLICITUD DE INFORMACIÓN Y DOCUMENTOS | F87: SOLICITUD DE INFORMACIÓN HIDROMETEOROLÓGICA | G87: GRUPO DE SERVICIO AL CIUDADANO | H87: 2019-07-09 | I87: CORREO ELECTRÓNICO | J87: 2019-07-17 | K87: A TIEMPO | L87: 4 | P87: 10 | X87: SEDIMENTOS | AC87: 2019-09-22
A88: 77 | B88: 20199050049092 | C88: 2019-07-03 | D88: MODULO CONTACTENOS | E88: SOLICITUD DE INFORMACIÓN Y DOCUMENTOS | F88: SOLICITUD DE INFORMACIÓN HIDROMETEOROLÓGICA | G88: GRUPO DE SERVICIO AL CIUDADANO | H88: 2019-07-09 | I88: CORREO ELECTRÓNICO | J88: 2019-07-17 | K88: A TIEMPO | L88: 4 | P88: 10 | X88: SIA | Y88: SISTEMA DE INFORMACIÓN AMBIENTAL | AC88: 2019-09-28
A89: 78 | B89: 20199050049122 | C89: 2019-07-03 | D89: MODULO CONTACTENOS | E89: SOLICITUD DE INFORMACIÓN Y DOCUMENTOS | F89: SOLICITUD DE INFORMACIÓN HIDROMETEOROLÓGICA | G89: GRUPO DE SERVICIO AL CIUDADANO | H89: 2019-07-09 | I89: CORREO ELECTRÓNICO | J89: 2019-07-17 | K89: A TIEMPO | L89: 4 | P89: 10 | X89: SIRH | Y89: SISTEMA DE INFORMACIÓN DEL RECURDO HÍDRICO | AC89: 2019-09-29
A90: 79 | B90: 20199050049152 | C90: 2019-07-03 | D90: CORREO ELECTRÓNICO | E90: SOLICITUD DE INFORMACIÓN Y DOCUMENTOS | F90: SOLICITUD DE INFORMACIÓN HIDROMETEOROLÓGICA | G90: GRUPO DE SERVICIO AL CIUDADANO | H90: 2019-07-09 | I90: CORREO ELECTRÓNICO | J90: 2019-07-17 | K90: A TIEMPO | L90: 4 | P90: 10 | X90: SOLICITUD DE INFORMACIÓN HIDROMETEOROLÓGICA | AC90: 2019-10-05
A91: 80 | B91: 20199910072062 | C91: 2019-07-03 | D91: ATENCIÓN PRESENCIAL | E91: SOLICITUD DE INFORMACIÓN Y DOCUMENTOS | F91: SOLICITUD DE INFORMACIÓN HIDROMETEOROLÓGICA | G91: GRUPO DE SERVICIO AL CIUDADANO | H91: 2019-07-17 | I91: CORREO ELECTRÓNICO | J91: 2019-07-17 | K91: A TIEMPO | L91: 10 | P91: 10 | X91: SUELOS Y TIERRAS | AC91: 2019-10-06
A92: 81 | B92: 20199050049002 | C92: 2019-07-03 | D92: MODULO CONTACTENOS | E92: CERTIFICACIONES DE TIEMPO, CLIMA Y EVENTOS HIDROLÓGICOS | F92: CERTIFICACIONES DE TIEMPO Y CLIMA | G92: SUBDIRECCIÓN DE METEOROLOGÍA | H92: 2019-07-19 | I92: CORREO ELECTRÓNICO | J92: 2019-08-15 | K92: A TIEMPO | L92: 12 | P92: 30 | X92: VISITAS ACADÉMICAS | AC92: 2019-10-12
A93: 82 | B93: 20199050049012 | C93: 2019-07-03 | D93: MODULO CONTACTENOS | E93: CERTIFICACIONES DE TIEMPO, CLIMA Y EVENTOS HIDROLÓGICOS | F93: CERTIFICACIONES DE TIEMPO Y CLIMA | G93: SUBDIRECCIÓN DE METEOROLOGÍA | H93: 2019-07-11 | I93: CORREO ELECTRÓNICO | J93: 2019-08-15 | K93: A TIEMPO | L93: 6 | P93: 30 | X93: WEB Y CORREO | AC93: 2019-10-13
A94: 83 | B94: 20199050049132 | C94: 2019-07-03 | D94: CORREO ELECTRÓNICO | E94: SOLICITUD DE INFORMACIÓN Y DOCUMENTOS | F94: REGISTROS AMBIENTALES | G94: SUBDIRECCIÓN DE ESTUDIOS AMBIENTALES | H94: 2019-07-03 | I94: CORREO ELECTRÓNICO | J94: 2019-07-17 | K94: A TIEMPO | L94: -2 | P94: 10 | X94: ZONIFICACIÓN HIDROGRÁFICA | AC94: 2019-10-14
A95: 84 | B95: 20199050050322 | C95: 2019-07-03 | D95: MODULO CONTACTENOS | E95: PETICIÓN | F95: SOLICITUD DE INFORMACIÓN HIDROMETEOROLÓGICA | G95: OFICINA DE INFORMÁTICA | H95: 2019-07-22 | I95: CORREO CERTIFICADO | J95: 2019-07-24 | K95: A TIEMPO | L95: 13 | P95: 15 | AC95: 2019-10-19
A96: 85 | B96: 20199050049142 | C96: 2019-07-03 | D96: CORREO ELECTRÓNICO | E96: SOLICITUD DE INFORMACIÓN Y DOCUMENTOS | F96: REGISTROS AMBIENTALES | G96: SUBDIRECCIÓN DE ESTUDIOS AMBIENTALES | H96: 2019-07-08 | I96: CORREO ELECTRÓNICO | J96: 2019-07-17 | K96: A TIEMPO | L96: 3 | P96: 10 | X96: MEDIO DE RECEPCIÓN | AC96: 2019-10-20
A97: 86 | B97: 20199050049162 | C97: 2019-07-03 | D97: CORREO ELECTRÓNICO | E97: SOLICITUD DE INFORMACIÓN Y DOCUMENTOS | F97: REGISTROS AMBIENTALES | G97: SUBDIRECCIÓN DE ESTUDIOS AMBIENTALES | H97: 2019-07-03 | I97: CORREO ELECTRÓNICO | J97: 2019-07-17 | K97: A TIEMPO | L97: -2 | P97: 10 | X97: ATENCIÓN PRESENCIAL | AC97: 2019-10-26
A98: 87 | B98: 20199050049172 | C98: 2019-07-03 | D98: CORREO ELECTRÓNICO | E98: SOLICITUD DE INFORMACIÓN Y DOCUMENTOS | F98: ADMINISTRATIVA | G98: GRUPO DE TESORERÍA | H98: 2019-07-04 | I98: CORREO ELECTRÓNICO | J98: 2019-07-17 | K98: A TIEMPO | L98: 1 | P98: 10 | X98: ATENCIÓN TELEFÓNICA | AC98: 2019-10-27
A99: 88 | B99: 20199050049182 | C99: 2019-07-03 | D99: CORREO ELECTRÓNICO | E99: SOLICITUD DE INFORMACIÓN Y DOCUMENTOS | F99: REGISTROS AMBIENTALES | G99: SUBDIRECCIÓN DE ESTUDIOS AMBIENTALES | H99: 2019-07-03 | I99: CORREO ELECTRÓNICO | J99: 2019-07-17 | K99: A TIEMPO | L99: -2 | P99: 10 | X99: BUZÓN DE SUGERENCIAS | AC99: 2019-11-02
A100: 89 | B100: 20199050049052 | C100: 2019-07-03 | D100: MODULO CONTACTENOS | E100: SOLICITUD DE INFORMACIÓN Y DOCUMENTOS | F100: ADMINISTRATIVA | G100: GRUPO DE ADMINISTRACIÓN Y DESARROLLO DEL TALENTO HUMANO | H100: 2019-07-16 | I100: CORREO ELECTRÓNICO | J100: 2019-07-17 | K100: A TIEMPO | L100: 9 | P100: 10 | X100: CHAT | AC100: 2019-11-03
A101: 90 | B101: 20197070000632 | C101: 2019-07-03 | D101: CORREO CERTIFICADO | E101: SOLICITUD DE INFORMACIÓN Y DOCUMENTOS | F101: CERTIFICACIONES DE TIEMPO Y CLIMA | G101: SUBDIRECCIÓN DE METEOROLOGÍA | H101: 2019-07-08 | I101: CORREO ELECTRÓNICO | J101: 2019-07-17 | K101: A TIEMPO | L101: 3 | P101: 10 | X101: CORREO CERTIFICADO | AC101: 2019-11-04
A102: 91 | B102: 20199050049102 | C102: 2019-07-03 | D102: MODULO CONTACTENOS | E102: PETICIÓN | F102: ADMINISTRATIVA | G102: GRUPO DE TESORERÍA | H102: 2019-07-19 | I102: CORREO ELECTRÓNICO | J102: 2019-07-24 | K102: A TIEMPO | L102: 12 | P102: 15 | X102: CORREO ELECTRÓNICO | AC102: 2019-11-09
A103: 92 | B103: 20199050049112 | C103: 2019-07-03 | D103: MODULO CONTACTENOS | E103: CERTIFICACIONES DE TIEMPO, CLIMA Y EVENTOS HIDROLÓGICOS | F103: CERTIFICACIONES DE TIEMPO Y CLIMA | G103: SUBDIRECCIÓN DE METEOROLOGÍA | H103: 2019-07-11 | I103: CORREO ELECTRÓNICO | J103: 2019-08-15 | K103: A TIEMPO | L103: 6 | P103: 30 | X103: FAX | AC103: 2019-11-10
A104: 93 | B104: 20199050049232 | C104: 2019-07-04 | D104: CORREO ELECTRÓNICO | E104: CERTIFICACIONES DE TIEMPO, CLIMA Y EVENTOS HIDROLÓGICOS | F104: CERTIFICACIONES DE TIEMPO Y CLIMA | G104: SUBDIRECCIÓN DE METEOROLOGÍA | H104: 2019-07-07 | I104: CORREO ELECTRÓNICO | J104: 2019-08-16 | K104: A TIEMPO | L104: 1 | P104: 30 | X104: INTERNO | AC104: 2019-11-11
A105: 94 | B105: 20199050049252 | C105: 2019-07-04 | D105: CORREO ELECTRÓNICO | E105: SOLICITUD DE INFORMACIÓN Y DOCUMENTOS | F105: ESTUDIO NACIONAL DEL AGUA | G105: SUBDIRECCIÓN DE ECOSISTEMAS E INFORMACIÓN AMBIENTAL | H105: 2019-07-11 | I105: CORREO ELECTRÓNICO | J105: 2019-07-18 | K105: A TIEMPO | L105: 5 | P105: 10 | X105: MODULO CONTACTENOS | AC105: 2019-11-16
A106: 95 | B106: 20199050049272 | C106: 2019-07-04 | D106: CORREO ELECTRÓNICO | E106: SOLICITUD DE INFORMACIÓN Y DOCUMENTOS | F106: REGISTROS AMBIENTALES | G106: SUBDIRECCIÓN DE ESTUDIOS AMBIENTALES | H106: 2019-07-08 | I106: CORREO ELECTRÓNICO | J106: 2019-07-18 | K106: A TIEMPO | L106: 2 | P106: 10 | X106: WEB (MÓDULO DE SOLICITUD DE INFORMACIÓN HIDROMETEOROLÓGICA) | AC106: 2019-11-17
A107: 96 | B107: 20199050049282 | C107: 2019-07-04 | D107: CORREO ELECTRÓNICO | E107: SOLICITUD DE INFORMACIÓN Y DOCUMENTOS | F107: SIRH | G107: SUBDIRECCIÓN DE HIDROLOGÍA | H107: 2019-07-11 | I107: CORREO ELECTRÓNICO | J107: 2019-07-18 | K107: A TIEMPO | L107: 5 | P107: 10 | AC107: 2019-11-23
A108: 97 | B108: 20199050049312 | C108: 2019-07-04 | D108: MODULO CONTACTENOS | E108: SOLICITUD DE INFORMACIÓN Y DOCUMENTOS | F108: ADMINISTRATIVA | G108: GRUPO DE ADMINISTRACIÓN Y DESARROLLO DEL TALENTO HUMANO | H108: 2019-07-15 | I108: CORREO ELECTRÓNICO | J108: 2019-07-18 | K108: A TIEMPO | L108: 7 | P108: 10 | X108: ¿REQUERIMIENTO FUE ESCALADO? | AC108: 2019-11-24
A109: 98 | B109: 20199050049342 | C109: 2019-07-04 | D109: MODULO CONTACTENOS | E109: PETICIÓN | F109: ADMINISTRATIVA | G109: GRUPO DE ADMINISTRACIÓN Y DESARROLLO DEL TALENTO HUMANO | H109: 2019-07-24 | I109: CORREO ELECTRÓNICO | J109: 2019-07-25 | K109: A TIEMPO | L109: 14 | P109: 15 | X109: SI | AC109: 2019-11-30
A110: 99 | B110: 20199050049332 | C110: 2019-07-04 | D110: MODULO CONTACTENOS | E110: PETICIÓN | F110: ADMINISTRATIVA | G110: GRUPO DE ADMINISTRACIÓN Y DESARROLLO DEL TALENTO HUMANO | H110: 2019-07-25 | I110: CORREO ELECTRÓNICO | J110: 2019-07-25 | K110: A TIEMPO | L110: 15 | P110: 15 | X110: NO | AC110: 2019-12-01
A111: 100 | B111: 20199050049372 | C111: 2019-07-04 | D111: MODULO CONTACTENOS | E111: CERTIFICACIONES DE TIEMPO, CLIMA Y EVENTOS HIDROLÓGICOS | F111: CERTIFICACIONES DE TIEMPO Y CLIMA | G111: SUBDIRECCIÓN DE METEOROLOGÍA | H111: 2019-07-18 | I111: CORREO ELECTRÓNICO | J111: 2019-08-16 | K111: A TIEMPO | L111: 10 | P111: 30 | AC111: 2019-12-07
A112: 101 | B112: 20199050049202 | C112: 2019-07-04 | D112: CORREO ELECTRÓNICO | E112: SOLICITUD DE INFORMACIÓN Y DOCUMENTOS | F112: SOLICITUD DE INFORMACIÓN HIDROMETEOROLÓGICA | G112: GRUPO DE SERVICIO AL CIUDADANO | H112: 2019-07-10 | I112: CORREO ELECTRÓNICO | J112: 2019-07-18 | K112: A TIEMPO | L112: 4 | P112: 10 | X112: CANAL POR EL CUAL FUE RESUELTO EL REQUERIMIENTO | AC112: 2019-12-08
A113: 102 | B113: 20199050049212 | C113: 2019-07-04 | D113: MODULO CONTACTENOS | E113: SOLICITUD DE INFORMACIÓN Y DOCUMENTOS | F113: SOLICITUD DE INFORMACIÓN HIDROMETEOROLÓGICA | G113: GRUPO DE SERVICIO AL CIUDADANO | H113: 2019-07-10 | I113: CORREO ELECTRÓNICO | J113: 2019-07-18 | K113: A TIEMPO | L113: 4 | P113: 10 | X113: CORREO ELECTRÓNICO | AC113: 2019-12-14
A114: 103 | B114: 20199050049242 | C114: 2019-07-04 | D114: MODULO CONTACTENOS | E114: SOLICITUD DE INFORMACIÓN Y DOCUMENTOS | F114: SOLICITUD DE INFORMACIÓN HIDROMETEOROLÓGICA | G114: GRUPO DE SERVICIO AL CIUDADANO | H114: 2019-07-10 | I114: CORREO ELECTRÓNICO | J114: 2019-07-18 | K114: A TIEMPO | L114: 4 | P114: 10 | X114: CORREO CERTIFICADO | AC114: 2019-12-15
A115: 104 | B115: 20199050049262 | C115: 2019-07-04 | D115: CORREO ELECTRÓNICO | E115: SOLICITUD DE INFORMACIÓN Y DOCUMENTOS | F115: SOLICITUD DE INFORMACIÓN HIDROMETEOROLÓGICA | G115: GRUPO DE SERVICIO AL CIUDADANO | H115: 2019-07-10 | I115: CORREO ELECTRÓNICO | J115: 2019-07-18 | K115: A TIEMPO | L115: 4 | P115: 10 | AC115: 2019-12-21
A116: 105 | B116: 20199050049292 | C116: 2019-07-04 | D116: CORREO ELECTRÓNICO | E116: SOLICITUD DE INFORMACIÓN Y DOCUMENTOS | F116: SOLICITUD DE INFORMACIÓN HIDROMETEOROLÓGICA | G116: GRUPO DE SERVICIO AL CIUDADANO | H116: 2019-07-10 | I116: CORREO ELECTRÓNICO | J116: 2019-07-18 | K116: A TIEMPO | L116: 4 | P116: 10 | AC116: 2019-12-22
A117: 106 | B117: 20199050049322 | C117: 2019-07-04 | D117: MODULO CONTACTENOS | E117: SOLICITUD DE INFORMACIÓN Y DOCUMENTOS | F117: SOLICITUD DE INFORMACIÓN HIDROMETEOROLÓGICA | G117: GRUPO DE SERVICIO AL CIUDADANO | H117: 2019-07-10 | I117: CORREO ELECTRÓNICO | J117: 2019-07-18 | K117: A TIEMPO | L117: 4 | P117: 10 | AC117: 2019-12-25
A118: 107 | B118: 20199050049382 | C118: 2019-07-04 | D118: MODULO CONTACTENOS | E118: SOLICITUD DE INFORMACIÓN Y DOCUMENTOS | F118: SOLICITUD DE INFORMACIÓN HIDROMETEOROLÓGICA | G118: GRUPO DE SERVICIO AL CIUDADANO | H118: 2019-07-10 | I118: CORREO ELECTRÓNICO | J118: 2019-07-18 | K118: A TIEMPO | L118: 4 | P118: 10 | AC118: 2019-12-28
A119: 108 | B119: 20199910073352 | C119: 2019-07-04 | D119: ATENCIÓN PRESENCIAL | E119: SOLICITUD DE INFORMACIÓN Y DOCUMENTOS | F119: SOLICITUD DE INFORMACIÓN HIDROMETEOROLÓGICA | G119: GRUPO DE SERVICIO AL CIUDADANO | H119: 2019-07-16 | I119: CORREO CERTIFICADO | J119: 2019-07-18 | K119: A TIEMPO | L119: 8 | P119: 10 | AC119: 2019-12-29
A120: 109 | B120: 20199050049392 | C120: 2019-07-05 | D120: MODULO CONTACTENOS | E120: SOLICITUD DE INFORMACIÓN Y DOCUMENTOS | F120: SOLICITUD DE INFORMACIÓN HIDROMETEOROLÓGICA | G120: GRUPO DE SERVICIO AL CIUDADANO | H120: 2019-07-10 | I120: CORREO ELECTRÓNICO | J120: 2019-07-19 | K120: A TIEMPO | L120: 3 | P120: 10
A121: 110 | B121: 20199910073672 | C121: 2019-07-05 | D121: CORREO CERTIFICADO | E121: PETICIÓN | F121: REGISTROS AMBIENTALES | G121: SUBDIRECCIÓN DE ESTUDIOS AMBIENTALES | H121: 2019-07-21 | I121: CORREO ELECTRÓNICO | J121: 2019-07-26 | K121: A TIEMPO | L121: 10 | P121: 15
A122: 111 | B122: 20199910073892 | C122: 2019-07-05 | D122: CORREO CERTIFICADO | E122: PETICIÓN | F122: SOLICITUD DE INFORMACIÓN HIDROMETEOROLÓGICA | G122: SUBDIRECCIÓN DE HIDROLOGÍA | H122: 2019-07-11 | I122: CORREO ELECTRÓNICO | J122: 2019-07-26 | K122: A TIEMPO | L122: 4 | P122: 15
A123: 112 | B123: 20199910074002 | C123: 2019-07-05 | D123: CORREO CERTIFICADO | E123: SOLICITUD JUDICIAL | F123: ADMINISTRATIVA | G123: GRUPO DE TESORERÍA | H123: 2019-07-11 | I123: CORREO CERTIFICADO | J123: 2019-07-12 | K123: A TIEMPO | L123: 4 | P123: 5
A124: 113 | B124: 20199050049402 | C124: 2019-07-05 | D124: MODULO CONTACTENOS | E124: SOLICITUD DE INFORMACIÓN Y DOCUMENTOS | F124: SOLICITUD DE INFORMACIÓN HIDROMETEOROLÓGICA | G124: GRUPO DE SERVICIO AL CIUDADANO | H124: 2019-07-11 | I124: CORREO ELECTRÓNICO | J124: 2019-07-19 | K124: A TIEMPO | L124: 4 | P124: 10
A125: 114 | B125: 20199050049412 | C125: 2019-07-05 | D125: MODULO CONTACTENOS | E125: SOLICITUD DE INFORMACIÓN Y DOCUMENTOS | F125: SOLICITUD DE INFORMACIÓN HIDROMETEOROLÓGICA | G125: GRUPO DE SERVICIO AL CIUDADANO | H125: 2019-07-11 | I125: CORREO ELECTRÓNICO | J125: 2019-07-19 | K125: A TIEMPO | L125: 4 | P125: 10
A126: 115 | B126: 20199050049422 | C126: 2019-07-05 | D126: MODULO CONTACTENOS | E126: SOLICITUD DE INFORMACIÓN Y DOCUMENTOS | F126: SOLICITUD DE INFORMACIÓN HIDROMETEOROLÓGICA | G126: GRUPO DE SERVICIO AL CIUDADANO | H126: 2019-07-11 | I126: CORREO ELECTRÓNICO | J126: 2019-07-19 | K126: A TIEMPO | L126: 4 | P126: 10
A127: 116 | B127: 20199050049432 | C127: 2019-07-05 | D127: MODULO CONTACTENOS | E127: SOLICITUD DE INFORMACIÓN Y DOCUMENTOS | F127: CAMBIO CLIMÁTICO | G127: SUBDIRECCIÓN DE ESTUDIOS AMBIENTALES | H127: 2019-07-08 | I127: CORREO ELECTRÓNICO | J127: 2019-07-19 | K127: A TIEMPO | L127: 1 | P127: 10
A128: 117 | B128: 20199050049442 | C128: 2019-07-05 | D128: MODULO CONTACTENOS | E128: CERTIFICACIONES DE TIEMPO, CLIMA Y EVENTOS HIDROLÓGICOS | F128: CERTIFICACIONES DE TIEMPO Y CLIMA | G128: SUBDIRECCIÓN DE METEOROLOGÍA | H128: 2019-07-19 | I128: CORREO ELECTRÓNICO | J128: 2019-08-20 | K128: A TIEMPO | L128: 10 | P128: 30
A129: 118 | B129: 20199050049452 | C129: 2019-07-05 | D129: MODULO CONTACTENOS | E129: CERTIFICACIONES DE TIEMPO, CLIMA Y EVENTOS HIDROLÓGICOS | F129: CERTIFICACIONES DE TIEMPO Y CLIMA | G129: SUBDIRECCIÓN DE METEOROLOGÍA | H129: 2019-07-22 | I129: CORREO ELECTRÓNICO | J129: 2019-08-20 | K129: A TIEMPO | L129: 11 | P129: 30
A130: 119 | B130: 20197010000882 | C130: 2019-07-05 | D130: CORREO CERTIFICADO | E130: SOLICITUD DE INFORMACIÓN Y DOCUMENTOS | F130: CERTIFICACIONES DE TIEMPO Y CLIMA | G130: SUBDIRECCIÓN DE METEOROLOGÍA | H130: 2019-07-19 | I130: CORREO CERTIFICADO | J130: 2019-07-19 | K130: A TIEMPO | L130: 10 | P130: 10
A131: 120 | B131: 20197010000892 | C131: 2019-07-05 | D131: CORREO CERTIFICADO | E131: SOLICITUD DE INFORMACIÓN Y DOCUMENTOS | F131: ADMINISTRATIVA | G131: OFICINA ASESORA DE PLANEACIÓN | H131: 2019-07-12 | I131: CORREO ELECTRÓNICO | J131: 2019-07-19 | K131: A TIEMPO | L131: 5 | P131: 10
A132: 121 | B132: 20199050049462 | C132: 2019-07-05 | D132: CORREO ELECTRÓNICO | E132: SOLICITUD DE INFORMACIÓN Y DOCUMENTOS | F132: SOLICITUD DE INFORMACIÓN HIDROMETEOROLÓGICA | G132: GRUPO DE SERVICIO AL CIUDADANO | H132: 2019-07-08 | I132: CORREO ELECTRÓNICO | J132: 2019-07-19 | K132: A TIEMPO | L132: 1 | P132: 10
A133: 122 | B133: 20199050049472 | C133: 2019-07-05 | D133: CORREO ELECTRÓNICO | E133: SOLICITUD DE INFORMACIÓN Y DOCUMENTOS | F133: SOLICITUD DE INFORMACIÓN HIDROMETEOROLÓGICA | G133: GRUPO DE SERVICIO AL CIUDADANO | H133: 2019-07-08 | I133: CORREO ELECTRÓNICO | J133: 2019-07-19 | K133: A TIEMPO | L133: 1 | P133: 10
A134: 123 | B134: 20199050049482 | C134: 2019-07-06 | D134: CORREO ELECTRÓNICO | E134: SOLICITUD DE INFORMACIÓN Y DOCUMENTOS | F134: SOLICITUD DE INFORMACIÓN HIDROMETEOROLÓGICA | G134: GRUPO DE SERVICIO AL CIUDADANO | H134: 2019-07-08 | I134: CORREO ELECTRÓNICO | J134: 2019-07-19 | K134: A TIEMPO | L134: 1 | P134: 10
A135: 124 | B135: 20199050049492 | C135: 2019-07-06 | D135: CORREO ELECTRÓNICO | E135: SOLICITUD DE INFORMACIÓN Y DOCUMENTOS | F135: SOLICITUD DE INFORMACIÓN HIDROMETEOROLÓGICA | G135: GRUPO DE SERVICIO AL CIUDADANO | H135: 2019-07-08 | I135: CORREO ELECTRÓNICO | J135: 2019-07-19 | K135: A TIEMPO | L135: 1 | P135: 10
A136: 125 | B136: 20199050049502 | C136: 2019-07-06 | D136: CORREO ELECTRÓNICO | E136: SOLICITUD DE INFORMACIÓN Y DOCUMENTOS | F136: SOLICITUD DE INFORMACIÓN HIDROMETEOROLÓGICA | G136: GRUPO DE SERVICIO AL CIUDADANO | H136: 2019-07-08 | I136: CORREO ELECTRÓNICO | J136: 2019-07-19 | K136: A TIEMPO | L136: 1 | P136: 10
A137: 126 | B137: 20199050049512 | C137: 2019-07-06 | D137: CORREO ELECTRÓNICO | E137: SOLICITUD DE INFORMACIÓN Y DOCUMENTOS | F137: SOLICITUD DE INFORMACIÓN HIDROMETEOROLÓGICA | G137: GRUPO DE SERVICIO AL CIUDADANO | H137: 2019-07-09 | I137: CORREO ELECTRÓNICO | J137: 2019-07-19 | K137: A TIEMPO | L137: 2 | P137: 10
A138: 127 | B138: 20199050049522 | C138: 2019-07-06 | D138: CORREO ELECTRÓNICO | E138: SOLICITUD DE INFORMACIÓN Y DOCUMENTOS | F138: SOLICITUD DE INFORMACIÓN HIDROMETEOROLÓGICA | G138: GRUPO DE SERVICIO AL CIUDADANO | H138: 2019-07-09 | I138: CORREO ELECTRÓNICO | J138: 2019-07-19 | K138: A TIEMPO | L138: 2 | P138: 10
A139: 128 | B139: 20199050049542 | C139: 2019-07-06 | D139: CORREO ELECTRÓNICO | E139: SOLICITUD DE INFORMACIÓN Y DOCUMENTOS | F139: SOLICITUD DE INFORMACIÓN HIDROMETEOROLÓGICA | G139: GRUPO DE SERVICIO AL CIUDADANO | H139: 2019-07-09 | I139: CORREO ELECTRÓNICO | J139: 2019-07-19 | K139: A TIEMPO | L139: 2 | P139: 10
A140: 129 | B140: 20199050049552 | C140: 2019-07-06 | D140: CORREO ELECTRÓNICO | E140: SOLICITUD DE INFORMACIÓN Y DOCUMENTOS | F140: SOLICITUD DE INFORMACIÓN HIDROMETEOROLÓGICA | G140: GRUPO DE SERVICIO AL CIUDADANO | H140: 2019-07-09 | I140: CORREO ELECTRÓNICO | J140: =IFERROR(WORKDAY(C140,P140,DiasNOLaborables),"") -> 2019-07-19 | K140: =+IF(C140="","",IF(H140="","SIN RESPUESTA",(IF(H140<=J140,"A TIEMPO","FUERA DE TIEMPO")))) -> A TIEMPO | L140: =IF(H140="","",NETWORKDAYS(C140+1,H140,DiasNOLaborables)) -> 2 | M140: =IF(NETWORKDAYS(J140+1,H140,DiasNOLaborables)<=0,"",NETWORKDAYS(J140+1,H140,DiasNOLaborables)) ->  | P140: =IFERROR(VLOOKUP(E140,$X$50:$Y$63,2),"") -> 10
A141: 130 | B141: 20199050049592 | C141: 2019-07-06 | D141: CORREO ELECTRÓNICO | E141: SOLICITUD DE INFORMACIÓN Y DOCUMENTOS | F141: SOLICITUD DE INFORMACIÓN HIDROMETEOROLÓGICA | G141: GRUPO DE SERVICIO AL CIUDADANO | H141: 2019-07-09 | I141: CORREO ELECTRÓNICO | J141: 2019-07-19 | K141: A TIEMPO | L141: 2 | P141: 10
A142: =IF(B142<>"",A141+1,"") -> 131 | B142: 20199050049602 | C142: 2019-07-06 | D142: CORREO ELECTRÓNICO | E142: SOLICITUD DE INFORMACIÓN Y DOCUMENTOS | F142: SOLICITUD DE INFORMACIÓN HIDROMETEOROLÓGICA | G142: GRUPO DE SERVICIO AL CIUDADANO | H142: 2019-07-09 | I142: CORREO ELECTRÓNICO | J142: 2019-07-19 | K142: A TIEMPO | L142: 2 | P142: 10
A143: 132 | B143: 20199050049642 | C143: 2019-07-06 | D143: CORREO ELECTRÓNICO | E143: SOLICITUD DE INFORMACIÓN Y DOCUMENTOS | F143: SOLICITUD DE INFORMACIÓN HIDROMETEOROLÓGICA | G143: GRUPO DE SERVICIO AL CIUDADANO | H143: 2019-07-09 | I143: CORREO ELECTRÓNICO | J143: 2019-07-19 | K143: A TIEMPO | L143: 2 | P143: 10
A144: 133 | B144: 20199050049662 | C144: 2019-07-06 | D144: CORREO ELECTRÓNICO | E144: SOLICITUD DE INFORMACIÓN Y DOCUMENTOS | F144: SOLICITUD DE INFORMACIÓN HIDROMETEOROLÓGICA | G144: GRUPO DE SERVICIO AL CIUDADANO | H144: 2019-07-09 | I144: CORREO ELECTRÓNICO | J144: 2019-07-19 | K144: A TIEMPO | L144: 2 | P144: 10
A145: 134 | B145: 20199050049782 | C145: 2019-07-06 | D145: CORREO ELECTRÓNICO | E145: SOLICITUD DE INFORMACIÓN Y DOCUMENTOS | F145: SOLICITUD DE INFORMACIÓN HIDROMETEOROLÓGICA | G145: GRUPO DE SERVICIO AL CIUDADANO | H145: 2019-07-10 | I145: CORREO ELECTRÓNICO | J145: 2019-07-19 | K145: A TIEMPO | L145: 3 | P145: 10
A146: 135 | B146: 20199050049562 | C146: 2019-07-06 | D146: CORREO ELECTRÓNICO | E146: SOLICITUD DE INFORMACIÓN Y DOCUMENTOS | F146: CERTIFICACIONES DE TIEMPO Y CLIMA | G146: SUBDIRECCIÓN DE METEOROLOGÍA | H146: 2019-07-06 | I146: CORREO ELECTRÓNICO | J146: 2019-07-19 | K146: A TIEMPO | L146: 0 | P146: 10
A147: 136 | B147: 20199050049572 | C147: 2019-07-06 | D147: CORREO ELECTRÓNICO | E147: SOLICITUD DE INFORMACIÓN Y DOCUMENTOS | F147: REGISTROS AMBIENTALES | G147: SUBDIRECCIÓN DE ESTUDIOS AMBIENTALES | H147: 2019-07-08 | I147: CORREO ELECTRÓNICO | J147: 2019-07-19 | K147: A TIEMPO | L147: 1 | P147: 10
A148: 137 | B148: 20199050049612 | C148: 2019-07-06 | D148: CORREO ELECTRÓNICO | E148: SOLICITUD DE INFORMACIÓN Y DOCUMENTOS | F148: REGISTROS AMBIENTALES | G148: SUBDIRECCIÓN DE ESTUDIOS AMBIENTALES | H148: 2019-07-06 | I148: CORREO ELECTRÓNICO | J148: 2019-07-19 | K148: A TIEMPO | L148: 0 | P148: 10
A149: 138 | B149: 20199050049622 | C149: 2019-07-06 | D149: CORREO ELECTRÓNICO | E149: SOLICITUD DE INFORMACIÓN Y DOCUMENTOS | F149: REGISTROS AMBIENTALES | G149: SUBDIRECCIÓN DE ESTUDIOS AMBIENTALES | H149: 2019-07-06 | I149: CORREO ELECTRÓNICO | J149: 2019-07-19 | K149: A TIEMPO | L149: 0 | P149: 10
A150: 139 | B150: 20199050049632 | C150: 2019-07-06 | D150: CORREO ELECTRÓNICO | E150: CERTIFICACIONES DE TIEMPO, CLIMA Y EVENTOS HIDROLÓGICOS | F150: CERTIFICACIONES DE TIEMPO Y CLIMA | G150: SUBDIRECCIÓN DE METEOROLOGÍA | H150: 2019-07-19 | I150: CORREO ELECTRÓNICO | J150: 2019-08-20 | K150: A TIEMPO | L150: 10 | P150: 30
A151: 140 | B151: 20199050049652 | C151: 2019-07-06 | D151: CORREO ELECTRÓNICO | E151: SOLICITUD DE INFORMACIÓN Y DOCUMENTOS | F151: INFORMES AMBIENTALES | G151: SUBDIRECCIÓN DE ESTUDIOS AMBIENTALES | H151: 2019-08-13 | I151: CORREO ELECTRÓNICO | J151: 2019-07-19 | K151: FUERA DE TIEMPO | L151: 26 | M151: 16 | P151: 10
A152: 141 | B152: 20199050049672 | C152: 2019-07-06 | D152: CORREO ELECTRÓNICO | E152: SOLICITUD DE INFORMACIÓN Y DOCUMENTOS | F152: CERTIFICACIONES DE TIEMPO Y CLIMA | G152: SUBDIRECCIÓN DE METEOROLOGÍA | H152: 2019-07-18 | I152: CORREO ELECTRÓNICO | J152: 2019-07-19 | K152: A TIEMPO | L152: 9 | P152: 10
A153: 142 | B153: 20199050049682 | C153: 2019-07-06 | D153: CORREO ELECTRÓNICO | E153: SOLICITUD DE INFORMACIÓN Y DOCUMENTOS | F153: SIA | G153: SUBDIRECCIÓN DE ECOSISTEMAS E INFORMACIÓN AMBIENTAL | H153: 2019-07-16 | I153: CORREO ELECTRÓNICO | J153: 2019-07-19 | K153: A TIEMPO | L153: 7 | P153: 10
A154: 143 | B154: 20199050049692 | C154: 2019-07-06 | D154: CORREO ELECTRÓNICO | E154: CERTIFICACIONES DE TIEMPO, CLIMA Y EVENTOS HIDROLÓGICOS | F154: CERTIFICACIONES DE TIEMPO Y CLIMA | G154: SUBDIRECCIÓN DE METEOROLOGÍA | H154: 2019-07-12 | I154: CORREO ELECTRÓNICO | J154: 2019-08-20 | K154: A TIEMPO | L154: 5 | P154: 30
A155: 144 | B155: 20199050049722 | C155: 2019-07-06 | D155: CORREO ELECTRÓNICO | E155: CERTIFICACIONES DE TIEMPO, CLIMA Y EVENTOS HIDROLÓGICOS | F155: CERTIFICACIONES DE TIEMPO Y CLIMA | G155: SUBDIRECCIÓN DE METEOROLOGÍA | H155: 2019-07-22 | I155: CORREO ELECTRÓNICO | J155: 2019-08-20 | K155: A TIEMPO | L155: 11 | P155: 30
A156: 145 | B156: 20199050049712 | C156: 2019-07-06 | D156: MODULO CONTACTENOS | E156: SOLICITUD DE INFORMACIÓN Y DOCUMENTOS | F156: SOLICITUD DE INFORMACIÓN HIDROMETEOROLÓGICA | G156: GRUPO DE SERVICIO AL CIUDADANO | H156: 2019-07-11 | I156: CORREO ELECTRÓNICO | J156: 2019-07-19 | K156: A TIEMPO | L156: 4 | P156: 10
A157: 146 | B157: 20199050049802 | C157: 2019-07-07 | D157: MODULO CONTACTENOS | E157: SOLICITUD DE INFORMACIÓN Y DOCUMENTOS | F157: SOLICITUD DE INFORMACIÓN HIDROMETEOROLÓGICA | G157: GRUPO DE SERVICIO AL CIUDADANO | H157: 2019-07-11 | I157: CORREO ELECTRÓNICO | J157: 2019-07-19 | K157: A TIEMPO | L157: 4 | P157: 10
A158: 147 | B158: 20199050049732 | C158: 2019-07-07 | D158: CORREO ELECTRÓNICO | E158: SOLICITUD DE INFORMACIÓN Y DOCUMENTOS | F158: SIA | G158: SUBDIRECCIÓN DE ECOSISTEMAS E INFORMACIÓN AMBIENTAL | H158: 2019-08-04 | I158: CORREO ELECTRÓNICO | J158: 2019-07-19 | K158: FUERA DE TIEMPO | L158: 20 | M158: 10 | P158: 10
A159: 148 | B159: 20199050049742 | C159: 2019-07-07 | D159: CORREO ELECTRÓNICO | E159: CERTIFICACIONES DE TIEMPO, CLIMA Y EVENTOS HIDROLÓGICOS | F159: CERTIFICACIONES DE TIEMPO Y CLIMA | G159: SUBDIRECCIÓN DE METEOROLOGÍA | H159: 2019-07-18 | I159: CORREO ELECTRÓNICO | J159: 2019-08-20 | K159: A TIEMPO | L159: 9 | P159: 30
A160: 149 | B160: 20199050049752 | C160: 2019-07-07 | D160: CORREO ELECTRÓNICO | E160: SOLICITUD DE INFORMACIÓN Y DOCUMENTOS | F160: BOSQUES | G160: SUBDIRECCIÓN DE ECOSISTEMAS E INFORMACIÓN AMBIENTAL | H160: 2019-07-19 | I160: CORREO ELECTRÓNICO | J160: 2019-07-19 | K160: A TIEMPO | L160: 10 | P160: 10
A161: 150 | B161: 20199050049762 | C161: 2019-07-07 | D161: CORREO ELECTRÓNICO | E161: CERTIFICACIONES DE TIEMPO, CLIMA Y EVENTOS HIDROLÓGICOS | F161: CERTIFICACIONES DE TIEMPO Y CLIMA | G161: SUBDIRECCIÓN DE METEOROLOGÍA | H161: 2019-07-30 | I161: CORREO ELECTRÓNICO | J161: 2019-08-20 | K161: A TIEMPO | L161: 17 | P161: 30
A162: 151 | B162: 20199050049772 | C162: 2019-07-07 | D162: CORREO ELECTRÓNICO | E162: CERTIFICACIONES DE TIEMPO, CLIMA Y EVENTOS HIDROLÓGICOS | F162: CERTIFICACIONES DE TIEMPO Y CLIMA | G162: SUBDIRECCIÓN DE METEOROLOGÍA | H162: 2019-07-23 | I162: CORREO ELECTRÓNICO | J162: 2019-08-20 | K162: A TIEMPO | L162: 12 | P162: 30
A163: 152 | B163: 20199050049792 | C163: 2019-07-07 | D163: CORREO ELECTRÓNICO | E163: CERTIFICACIONES DE TIEMPO, CLIMA Y EVENTOS HIDROLÓGICOS | F163: CERTIFICACIONES DE TIEMPO Y CLIMA | G163: SUBDIRECCIÓN DE METEOROLOGÍA | H163: 2019-07-29 | I163: CORREO ELECTRÓNICO | J163: 2019-08-20 | K163: A TIEMPO | L163: 16 | P163: 30
A164: 153 | B164: 20199050049812 | C164: 2019-07-07 | D164: CORREO ELECTRÓNICO | E164: SOLICITUD DE INFORMACIÓN Y DOCUMENTOS | F164: ACREDITACIÓN DE LABORATORIOS | G164: SUBDIRECCIÓN DE ESTUDIOS AMBIENTALES | H164: 2019-07-18 | I164: CORREO CERTIFICADO | J164: 2019-07-19 | K164: A TIEMPO | L164: 9 | P164: 10
A165: 154 | B165: 20199050049822 | C165: 2019-07-07 | D165: CORREO ELECTRÓNICO | E165: SOLICITUD DE INFORMACIÓN Y DOCUMENTOS | F165: SIA | G165: SUBDIRECCIÓN DE ECOSISTEMAS E INFORMACIÓN AMBIENTAL | H165: 2019-07-18 | I165: CORREO CERTIFICADO | J165: 2019-07-19 | K165: A TIEMPO | L165: 9 | P165: 10
A166: 155 | B166: 20199050049832 | C166: 2019-07-07 | D166: CORREO ELECTRÓNICO | E166: SOLICITUD DE INFORMACIÓN Y DOCUMENTOS | F166: REGISTROS AMBIENTALES | G166: SUBDIRECCIÓN DE ESTUDIOS AMBIENTALES | H166: 2019-07-08 | I166: CORREO ELECTRÓNICO | J166: 2019-07-19 | K166: A TIEMPO | L166: 1 | P166: 10
A167: 156 | B167: 20199050049862 | C167: 2019-07-07 | D167: CORREO ELECTRÓNICO | E167: PETICIÓN | F167: ADMINISTRATIVA | G167: GRUPO DE ADMINISTRACIÓN Y DESARROLLO DEL TALENTO HUMANO | H167: 2019-07-22 | I167: CORREO ELECTRÓNICO | J167: 2019-07-26 | K167: A TIEMPO | L167: 11 | P167: 15
A168: 157 | B168: 20199050049872 | C168: 2019-07-07 | D168: CORREO ELECTRÓNICO | E168: CERTIFICACIONES DE TIEMPO, CLIMA Y EVENTOS HIDROLÓGICOS | F168: CERTIFICACIONES DE TIEMPO Y CLIMA | G168: SUBDIRECCIÓN DE METEOROLOGÍA | H168: 2019-07-30 | I168: CORREO ELECTRÓNICO | J168: 2019-08-20 | K168: A TIEMPO | L168: 17 | P168: 30
A169: 158 | B169: 20199050049882 | C169: 2019-07-07 | D169: CORREO ELECTRÓNICO | E169: SOLICITUD DE INFORMACIÓN Y DOCUMENTOS | F169: ACREDITACIÓN DE LABORATORIOS | G169: SUBDIRECCIÓN DE ESTUDIOS AMBIENTALES | H169: 2019-07-17 | I169: CORREO ELECTRÓNICO | J169: 2019-07-19 | K169: A TIEMPO | L169: 8 | P169: 10
A170: 159 | B170: 20199050049892 | C170: 2019-07-07 | D170: CORREO ELECTRÓNICO | E170: SOLICITUD DE INFORMACIÓN Y DOCUMENTOS | F170: CERTIFICACIONES DE TIEMPO Y CLIMA | G170: SUBDIRECCIÓN DE METEOROLOGÍA | H170: 2019-07-18 | I170: CORREO CERTIFICADO | J170: 2019-07-19 | K170: A TIEMPO | L170: 9 | P170: 10
A171: 160 | B171: 20199050049902 | C171: 2019-07-07 | D171: CORREO ELECTRÓNICO | E171: CERTIFICACIONES DE TIEMPO, CLIMA Y EVENTOS HIDROLÓGICOS | F171: CLIMATOLOGÍA | G171: SUBDIRECCIÓN DE METEOROLOGÍA | H171: 2019-08-12 | I171: CORREO ELECTRÓNICO | J171: 2019-08-20 | K171: A TIEMPO | L171: 25 | P171: 30
A172: 161 | B172: 20199050049942 | C172: 2019-07-07 | D172: CORREO ELECTRÓNICO | E172: SOLICITUD DE INFORMACIÓN Y DOCUMENTOS | F172: PRONÓSTICOS Y ALERTAS | G172: OFICINA DEL SERVICIO DE PRONÓSTICOS Y ALERTAS | H172: 2019-07-18 | I172: CORREO ELECTRÓNICO | J172: 2019-07-19 | K172: A TIEMPO | L172: 9 | P172: 10
A173: 162 | B173: 20199050049952 | C173: 2019-07-07 | D173: CORREO ELECTRÓNICO | E173: SOLICITUD DE INFORMACIÓN Y DOCUMENTOS | F173: PRONÓSTICOS Y ALERTAS | G173: OFICINA DEL SERVICIO DE PRONÓSTICOS Y ALERTAS | H173: 2019-07-18 | I173: CORREO ELECTRÓNICO | J173: 2019-07-19 | K173: A TIEMPO | L173: 9 | P173: 10
A174: 163 | B174: 20199050049962 | C174: 2019-07-07 | D174: CORREO ELECTRÓNICO | E174: SOLICITUD DE INFORMACIÓN Y DOCUMENTOS | F174: PRONÓSTICOS Y ALERTAS | G174: OFICINA DEL SERVICIO DE PRONÓSTICOS Y ALERTAS | H174: 2019-07-18 | I174: CORREO ELECTRÓNICO | J174: 2019-07-19 | K174: A TIEMPO | L174: 9 | P174: 10
A175: 164 | B175: 20199050050012 | C175: 2019-07-07 | D175: MODULO CONTACTENOS | E175: SOLICITUD DE INFORMACIÓN Y DOCUMENTOS | F175: BOSQUES | G175: SUBDIRECCIÓN DE ECOSISTEMAS E INFORMACIÓN AMBIENTAL | H175: 2019-07-12 | I175: CORREO ELECTRÓNICO | J175: 2019-07-19 | K175: A TIEMPO | L175: 5 | P175: 10
A176: 165 | B176: 20199050049842 | C176: 2019-07-07 | D176: CORREO ELECTRÓNICO | E176: SOLICITUD DE INFORMACIÓN Y DOCUMENTOS | F176: SOLICITUD DE INFORMACIÓN HIDROMETEOROLÓGICA | G176: GRUPO DE SERVICIO AL CIUDADANO | H176: 2019-07-10 | I176: CORREO ELECTRÓNICO | J176: 2019-07-19 | K176: A TIEMPO | L176: 3 | P176: 10
A177: 166 | B177: 20199050049912 | C177: 2019-07-07 | D177: CORREO ELECTRÓNICO | E177: SOLICITUD DE INFORMACIÓN Y DOCUMENTOS | F177: SOLICITUD DE INFORMACIÓN HIDROMETEOROLÓGICA | G177: GRUPO DE SERVICIO AL CIUDADANO | H177: 2019-07-11 | I177: CORREO ELECTRÓNICO | J177: 2019-07-19 | K177: A TIEMPO | L177: 4 | P177: 10
A178: 167 | B178: 20199050049922 | C178: 2019-07-07 | D178: CORREO ELECTRÓNICO | E178: SOLICITUD DE INFORMACIÓN Y DOCUMENTOS | F178: SOLICITUD DE INFORMACIÓN HIDROMETEOROLÓGICA | G178: GRUPO DE SERVICIO AL CIUDADANO | H178: 2019-07-11 | I178: CORREO ELECTRÓNICO | J178: 2019-07-19 | K178: A TIEMPO | L178: 4 | P178: 10
A179: 168 | B179: 20199050049972 | C179: 2019-07-07 | D179: CORREO ELECTRÓNICO | E179: SOLICITUD DE INFORMACIÓN Y DOCUMENTOS | F179: SOLICITUD DE INFORMACIÓN HIDROMETEOROLÓGICA | G179: GRUPO DE SERVICIO AL CIUDADANO | H179: 2019-07-11 | I179: CORREO ELECTRÓNICO | J179: 2019-07-19 | K179: A TIEMPO | L179: 4 | P179: 10
A180: 169 | B180: 20199050049932 | C180: 2019-07-07 | D180: MODULO CONTACTENOS | E180: SOLICITUD DE INFORMACIÓN Y DOCUMENTOS | F180: SOLICITUD DE INFORMACIÓN HIDROMETEOROLÓGICA | G180: GRUPO DE SERVICIO AL CIUDADANO | H180: 2019-07-09 | I180: CORREO ELECTRÓNICO | J180: 2019-07-19 | K180: A TIEMPO | L180: 2 | P180: 10
A181: 170 | B181: 20199050049982 | C181: 2019-07-07 | D181: CORREO ELECTRÓNICO | E181: SOLICITUD DE INFORMACIÓN Y DOCUMENTOS | F181: SOLICITUD DE INFORMACIÓN HIDROMETEOROLÓGICA | G181: GRUPO DE SERVICIO AL CIUDADANO | H181: 2019-07-12 | I181: CORREO ELECTRÓNICO | J181: 2019-07-19 | K181: A TIEMPO | L181: 5 | P181: 10
A182: 171 | B182: 20199050049992 | C182: 2019-07-07 | D182: CORREO ELECTRÓNICO | E182: SOLICITUD DE INFORMACIÓN Y DOCUMENTOS | F182: SOLICITUD DE INFORMACIÓN HIDROMETEOROLÓGICA | G182: GRUPO DE SERVICIO AL CIUDADANO | H182: 2019-07-12 | I182: CORREO ELECTRÓNICO | J182: 2019-07-19 | K182: A TIEMPO | L182: 5 | P182: 10
A183: 172 | B183: 20199050050662 | C183: 2019-07-07 | D183: CORREO ELECTRÓNICO | E183: SOLICITUD DE INFORMACIÓN Y DOCUMENTOS | F183: SOLICITUD DE INFORMACIÓN HIDROMETEOROLÓGICA | G183: GRUPO DE SERVICIO AL CIUDADANO | H183: 2019-07-12 | I183: CORREO ELECTRÓNICO | J183: 2019-07-19 | K183: A TIEMPO | L183: 5 | P183: 10
A184: 173 | B184: 20199050050712 | C184: 2019-07-07 | D184: CORREO ELECTRÓNICO | E184: SOLICITUD DE INFORMACIÓN Y DOCUMENTOS | F184: SOLICITUD DE INFORMACIÓN HIDROMETEOROLÓGICA | G184: GRUPO DE SERVICIO AL CIUDADANO | H184: 2019-07-12 | I184: CORREO ELECTRÓNICO | J184: 2019-07-19 | K184: A TIEMPO | L184: 5 | P184: 10
A185: 174 | B185: 20199050050722 | C185: 2019-07-08 | D185: CORREO ELECTRÓNICO | E185: SOLICITUD DE INFORMACIÓN Y DOCUMENTOS | F185: SOLICITUD DE INFORMACIÓN HIDROMETEOROLÓGICA | G185: GRUPO DE SERVICIO AL CIUDADANO | H185: 2019-07-12 | I185: CORREO ELECTRÓNICO | J185: 2019-07-22 | K185: A TIEMPO | L185: 4 | P185: 10
A186: 175 | B186: 20199050050732 | C186: 2019-07-08 | D186: CORREO ELECTRÓNICO | E186: SOLICITUD DE INFORMACIÓN Y DOCUMENTOS | F186: SOLICITUD DE INFORMACIÓN HIDROMETEOROLÓGICA | G186: GRUPO DE SERVICIO AL CIUDADANO | H186: 2019-07-12 | I186: CORREO ELECTRÓNICO | J186: 2019-07-22 | K186: A TIEMPO | L186: 4 | P186: 10
A187: 176 | B187: 20199050050102 | C187: 2019-07-08 | D187: MODULO CONTACTENOS | E187: CERTIFICACIONES DE TIEMPO, CLIMA Y EVENTOS HIDROLÓGICOS | F187: CERTIFICACIONES DE TIEMPO Y CLIMA | G187: SUBDIRECCIÓN DE METEOROLOGÍA | H187: 2019-07-29 | I187: CORREO ELECTRÓNICO | J187: 2019-08-21 | K187: A TIEMPO | L187: 15 | P187: 30
A188: 177 | B188: 20199050050282 | C188: 2019-07-08 | D188: CORREO ELECTRÓNICO | E188: PETICIÓN | F188: ADMINISTRATIVA | G188: OFICINA ASESORA JURÍDICA | H188: 2019-07-25 | I188: CORREO ELECTRÓNICO | J188: 2019-07-29 | K188: A TIEMPO | L188: 13 | P188: 15
A189: 178 | B189: 20199050050302 | C189: 2019-07-08 | D189: CORREO ELECTRÓNICO | E189: SOLICITUD DE INFORMACIÓN Y DOCUMENTOS | F189: ADMINISTRATIVA | G189: OFICINA ASESORA JURÍDICA | H189: 2019-07-08 | I189: CORREO CERTIFICADO | J189: 2019-07-22 | K189: A TIEMPO | L189: -2 | P189: 10
A190: 179 | B190: 20199050050342 | C190: 2019-07-08 | D190: CORREO ELECTRÓNICO | E190: CERTIFICACIONES DE TIEMPO, CLIMA Y EVENTOS HIDROLÓGICOS | F190: CERTIFICACIONES DE TIEMPO Y CLIMA | G190: SUBDIRECCIÓN DE METEOROLOGÍA | H190: 2019-07-29 | I190: CORREO ELECTRÓNICO | J190: 2019-08-21 | K190: A TIEMPO | L190: 15 | P190: 30
A191: 180 | B191: 20199050050382 | C191: 2019-07-08 | D191: CORREO ELECTRÓNICO | E191: SOLICITUD DE INFORMACIÓN Y DOCUMENTOS | F191: BOSQUES | G191: SUBDIRECCIÓN DE ECOSISTEMAS E INFORMACIÓN AMBIENTAL | H191: 2019-07-15 | I191: CORREO ELECTRÓNICO | J191: 2019-07-22 | K191: A TIEMPO | L191: 5 | P191: 10
A192: 181 | B192: 20199050050392 | C192: 2019-07-08 | D192: MODULO CONTACTENOS | E192: SOLICITUD DE INFORMACIÓN Y DOCUMENTOS | F192: REGISTROS AMBIENTALES | G192: SUBDIRECCIÓN DE ESTUDIOS AMBIENTALES | H192: 2019-07-08 | I192: CORREO ELECTRÓNICO | J192: 2019-07-22 | K192: A TIEMPO | L192: -2 | P192: 10
A193: 182 | B193: 20199050050402 | C193: 2019-07-08 | D193: CORREO ELECTRÓNICO | E193: SOLICITUD DE INFORMACIÓN Y DOCUMENTOS | F193: REGISTROS AMBIENTALES | G193: SUBDIRECCIÓN DE ESTUDIOS AMBIENTALES | H193: 2019-07-21 | I193: CORREO ELECTRÓNICO | J193: 2019-07-22 | K193: A TIEMPO | L193: 9 | P193: 10
A194: 183 | B194: 20199050050422 | C194: 2019-07-08 | D194: CORREO ELECTRÓNICO | E194: SOLICITUD DE INFORMACIÓN Y DOCUMENTOS | F194: ACREDITACIÓN DE LABORATORIOS | G194: SUBDIRECCIÓN DE ESTUDIOS AMBIENTALES | H194: 2019-07-12 | I194: CORREO ELECTRÓNICO | J194: 2019-07-22 | K194: A TIEMPO | L194: 4 | P194: 10
A195: 184 | B195: 20199050050442 | C195: 2019-07-08 | D195: CORREO ELECTRÓNICO | E195: QUEJA | F195: ADMINISTRATIVA | G195: GRUPO DE SERVICIOS ADMINISTRATIVOS | H195: 2019-07-16 | I195: CORREO ELECTRÓNICO | J195: 2019-07-29 | K195: A TIEMPO | L195: 6 | P195: 15
A196: 185 | B196: 20199050050492 | C196: 2019-07-08 | D196: CORREO ELECTRÓNICO | E196: PETICIÓN | F196: INFORMES AMBIENTALES | G196: SUBDIRECCIÓN DE ESTUDIOS AMBIENTALES | H196: 2019-08-02 | I196: CORREO ELECTRÓNICO | J196: 2019-07-29 | K196: FUERA DE TIEMPO | L196: 19 | M196: 4 | P196: 15
A197: 186 | B197: 20199050050502 | C197: 2019-07-08 | D197: CORREO ELECTRÓNICO | E197: CONSULTA | F197: SIRH | G197: SUBDIRECCIÓN DE ECOSISTEMAS E INFORMACIÓN AMBIENTAL | H197: 2019-08-09 | I197: CORREO CERTIFICADO | J197: 2019-08-21 | K197: A TIEMPO | L197: 23 | P197: 30
A198: 187 | B198: 20199050050512 | C198: 2019-07-08 | D198: CORREO ELECTRÓNICO | E198: SOLICITUD DE INFORMACIÓN Y DOCUMENTOS | F198: ADMINISTRATIVA | G198: GRUPO DE ADMINISTRACIÓN Y DESARROLLO DEL TALENTO HUMANO | H198: 2019-07-12 | I198: CORREO ELECTRÓNICO | J198: 2019-07-22 | K198: A TIEMPO | L198: 4 | P198: 10
A199: 188 | B199: 20199050050522 | C199: 2019-07-08 | D199: CORREO ELECTRÓNICO | E199: PETICIÓN | F199: REGISTROS AMBIENTALES | G199: SUBDIRECCIÓN DE ESTUDIOS AMBIENTALES | H199: 2019-07-09 | I199: CORREO CERTIFICADO | J199: 2019-07-29 | K199: A TIEMPO | L199: 1 | P199: 15
A200: 189 | B200: 20199050050552 | C200: 2019-07-08 | D200: CORREO ELECTRÓNICO | E200: CERTIFICACIONES DE TIEMPO, CLIMA Y EVENTOS HIDROLÓGICOS | F200: CERTIFICACIONES DE TIEMPO Y CLIMA | G200: SUBDIRECCIÓN DE METEOROLOGÍA | H200: 2019-07-19 | I200: CORREO ELECTRÓNICO | J200: 2019-08-21 | K200: A TIEMPO | L200: 9 | P200: 30
... 1845 more rows
